Cogmind - Beta 15 @@@ ROGUE MODE // 2025.07.30 @ 07:48:31 Player: C0-2MO Result: Escaped! Performance ------------- Evolutions (9) 4500 Regions Visited (33) 6600 Robots Destroyed (415) 2075 Value Destroyed (28143) 28143 Prototype IDs (374) 7480 Alien Tech Used (11) 2200 Bonus (80521) 80521 TOTAL SCORE: 131519 Bonus ------- Triggered High Security 500 High Alert Combat Kills 21126 Follower Combat Kills 1791 Network Hubs Disabled 800 Delivered SUBCON Basin 2000 Registered with UFD 300 Met Optimus in HQ 500 Met Data Miner 300 Met Zhirov 300 Built Enhanced Grunts 300 A7 Reached Mainframe 300 Met R17 at Cetus 500 Met R17 at Research 2000 Acquired SGEMP 2000 Destroyed Superfortress 15000 Met Optimus at Protoforge 1000 Completed Drillbomb Mission10000 Optimus Survived to 0b1 3000 Delivered SGEMP 2000 Destroyed MAIN.C Guards 500 Met MAIN.C 5000 Destroyed MAIN.C Shell 5000 Zhirov Destroyed MAIN.C 3000 Met Architect 300 Destroyed A8 300 Win 3000 Friendly Fire -296 Cogmind --------- Core Integrity 292/1600 Matter 212/300 Energy 217/220 System Corruption 0% Temperature Cool (5) Movement Hovering (115) Ox1 Location To Epsilon Eridani Parts ------- > --- POWER (2) -------- Concept Zero-point Core > --- PROPULSION (7) --- Improved Gyrokinetic Inverter Combat Linear Gravjet Concept Gyrokinetic System > --- UTILITY (11) ----- Experimental Coolant Injector Concept Thermoelectric Network Concept Antigrav Storage Unit Triangulator Experimental Core Analyzer Concept Recoil Nullifier Experimental ECM Suite Graphene Brace Drone Bay (0/2) > --- WEAPON (5) ------- (None) > --- INVENTORY (25) --- Concept NT7 Matterbank (750) Concept NT7 Matterbank (571) Concept Matter Streamer Peak State ------------ > --- POWER ------------ Experimental Antimatter Reactor Concept Zero-point Core > --- PROPULSION ------- Gravjet Array Gravjet Array Concept Combat Aerolev Unit Concept Gyrokinetic System Concept Gyrokinetic System > --- UTILITY ---------- Concept Antigrav Storage Unit Experimental Optical Array Experimental Active Sensor Suite Experimental Core Analyzer Advanced Transmission Jammer Concept Reaction Jets Concept Cloak Mesh Concept Cloak Mesh Graphene Brace Concept Network Penetrator > --- WEAPON ----------- Null Cannon Overtuned Railgun Overtuned Railgun Overtuned Railgun Concept Deflector Sword > --- INVENTORY -------- Quantum Reactor Concept Zero-point Core Matter Drive Improved Antigrav System Combat Linear Gravjet Concept Gyrokinetic System Scrap Suit Concept Thermoelectric Network Concept NT7 Matterbank Concept NT7 Matterbank Triangulator Concept Weapon Articulator Concept Recoil Nullifier Concept Recoil Nullifier ECM Suite Concept Reaction Jets Advanced System Restoration Module Concept Matter Streamer Transdimensional Reconstructor Overtuned Railgun Overtuned Railgun Overtuned Railgun Advanced Remote Datajack Concept Deflector Sword [Rating: 289] Favorites ----------- Power Concept Zero-point Core Engine Ion Engine Power Core Concept Zero-point Core Reactor Light Antimatter Reactor Propulsion Cooled Nuclear Pulse Thruster Treads Spiked Treads Wheel Wheel Hover Unit Gravjet Array Flight Unit Cooled Nuclear Pulse Thruster Utility Advanced Hacking Suite Device Concept Cloak Mesh Storage Medium Storage Unit Processor Experimental Core Analyzer Hackware Advanced Hacking Suite Protection Makeshift Propulsion Shielding Artifact Phase Redirector Weapon Overtuned Railgun Energy Gun Medium Laser Energy Cannon Subdweller Beam Cannon Ballistic Gun Overtuned Railgun Ballistic Cannon Concept Miniperforator Special Weapon Remote Datajack Impact Weapon Shock Maul Slashing Weapon Concept Deflector Sword Piercing Weapon Heavy Pick Special Melee Weapon Advanced Datajack Build | -11 -10 -10 -8 -8 -6 -6 -6 -6 -6 -6 -5 -5 -5 -5 -5 -5 -5 -5 -4 -4 -4 -4 -4 -4 -3 -3 -3 -3 -2 -2 -1 -1 -1 ------- Run | Yrd Mat Sub Rec Scr Fac Was Fac Low Low Dat Pro Fac Was Fac Ext Cet Arc Hub Fac Was Fac Upp Upp Zhi Pro Res Qua Frg Res Tes Acc Com Ac0 Slots Evolved 18 | . . . . . 8 . . . . . . 2 . . . . . . 2 . . . . . . 2 . . 2 . 2 . . Power 1 | . . . . . . . . . . . . 1 . . . . . . . . . . . . . . . . . . . . . Propulsion 5 | . . . . . 4 . . . . . . 1 . . . . . . . . . . . . . . . . . . . . . Utility 9 | . . . . . 4 . . . . . . . . . . . . . 2 . . . . . . 2 . . 1 . . . . Weapon 3 | . . . . . . . . . . . . . . . . . . . . . . . . . . . . . 1 . 2 . . Parts Attached 302 | 7 12 9 1 3 30 . 12 1 5 . 1 11 . 8 5 4 5 5 10 . 13 1 . 5 . 24 7 74 2 3 5 19 20 Power 32 | 1 2 2 . 1 2 . 1 1 1 . . 1 . 1 1 . . . 2 . 1 1 . . . 4 . 6 . . . 1 3 Engine 9 | 1 . 2 . 1 . . . . . . . 1 . . . . . . . . . 1 . . . 3 . . . . . . . Core 14 | . 2 . . . 2 . 1 1 1 . . . . 1 1 . . . . . 1 . . . . . . 3 . . . . 1 Reactor 9 | . . . . . . . . . . . . . . . . . . . 2 . . . . . . 1 . 3 . . . 1 2 Propulsion 84 | 2 3 2 . . 15 . 3 . 4 . . 3 . 4 1 . . 4 3 . 2 . . 3 . 5 . 23 . . . 5 2 Treads 4 | 1 2 1 . . . . . . . . . . . . . . . . . . . . . . . . . . . . . . . Leg . | . . . . . . . . . . . . . . . . . . . . . . . . . . . . . . . . . . Wheel 3 | 1 1 1 . . . . . . . . . . . . . . . . . . . . . . . . . . . . . . . Hover 19 | . . . . . 3 . . . . . . . . . . . . . . . . . . . . . . 9 . . . 5 2 Flight 58 | . . . . . 12 . 3 . 4 . . 3 . 4 1 . . 4 3 . 2 . . 3 . 5 . 14 . . . . . Utility 132 | 2 3 2 . 1 8 . 8 . . . . 6 . 3 2 2 5 1 3 . 9 . . 2 . 12 3 37 2 1 1 10 9 Device 70 | 1 . 2 . . 1 . 3 . . . . 2 . 2 . 1 3 1 2 . 4 . . 1 . 7 2 19 2 1 1 9 6 Storage 11 | 1 2 . . . . . . . . . . . . . 1 . 1 . . . . . . . . 3 . 3 . . . . . Processor 10 | . . . . . 1 . . . . . . . . 1 1 . . . . . 1 . . . . . . 6 . . . . . Hackware 23 | . . . . 1 5 . 5 . . . . 4 . . . . 1 . 1 . 4 . . 1 . . . 1 . . . . . Protection 17 | . 1 . . . 1 . . . . . . . . . . 1 . . . . . . . . . 2 . 8 . . . 1 3 Artifact 1 | . . . . . . . . . . . . . . . . . . . . . . . . . . . 1 . . . . . . Weapon 54 | 2 4 3 1 1 5 . . . . . 1 1 . . 1 2 . . 2 . 1 . . . . 3 4 8 . 2 4 3 6 Energy Gun 9 | 2 . 1 . . 1 . . . . . . . . . . 1 . . . . . . . . . . . 1 . . . 1 2 Energy Cannon 7 | . . 1 . . . . . . . . . . . . . . . . . . 1 . . . . . 1 . . 1 . . 3 Ballistic Gun 14 | . 1 1 1 . . . . . . . . . . . 1 1 . . . . . . . . . . 1 2 . 1 4 1 . Ballistic Cannon 5 | . 1 . . . . . . . . . . . . . . . . . . . . . . . . . . 2 . . . 1 1 Launcher . | . . . . . . . . . . . . . . . . . . . . . . . . . . . . . . . . . . Special Weapon 6 | . 1 . . . 1 . . . . . . . . . . . . . . . . . . . . 2 1 1 . . . . . Impact Weapon 1 | . . . . . 1 . . . . . . . . . . . . . . . . . . . . . . . . . . . . Slashing Weapon 8 | . . . . 1 1 . . . . . 1 . . . . . . . 1 . . . . . . 1 1 2 . . . . . Piercing Weapon 2 | . . . . . 1 . . . . . . 1 . . . . . . . . . . . . . . . . . . . . . Special Melee Weapon 2 | . 1 . . . . . . . . . . . . . . . . . 1 . . . . . . . . . . . . . . Unidentified Prototypes 35 | . . 1 . . 3 . 1 . . . . 1 . 1 . 3 2 . . . . . . 2 . 5 7 7 . 2 . . . Corrupted Parts 1 | . . . . 1 . . . . . . . . . . . . . . . . . . . . . . . . . . . . . System Corruption 3 | . . . . 3 . . . . . . . . . . . . . . . . . . . . . . . . . . . . . Parts Lost 98 | . . 2 . . 4 . 3 . 5 . . 3 . . 3 . . 6 . . 7 . . . . 6 . 18 . 1 . 5 35 Power 11 | . . . . . . . . . 1 . . . . . . . . 1 . . 1 . . . . 2 . 2 . . . . 4 Propulsion 35 | . . 1 . . 3 . 3 . 2 . . 3 . . 1 . . 4 . . 3 . . . . 1 . 4 . . . 2 8 Utility 33 | . . . . . 1 . . . 2 . . . . . 2 . . 1 . . 2 . . . . 3 . 11 . . . 2 9 Weapon 19 | . . 1 . . . . . . . . . . . . . . . . . . 1 . . . . . . 1 . 1 . 1 14 Highest Loss Streak 11 | . . 2 . . 2 . 2 . 5 . . 2 . . 3 . . 5 . . 3 . . . . 4 . 7 . 1 . 5 11 To Critical Strikes . | . . . . . . . . . . . . . . . . . . . . . . . . . . . . . . . . . . Average Backups 13 | 2 8 9 10 16 6 9 9 9 5 4 4 4 5 4 5 9 9 9 8 10 9 9 9 9 9 10 13 18 23 23 20 21 9 Power . | . 1 1 1 . 1 2 2 1 . . . . . . . 2 2 2 1 2 1 . . 1 1 1 1 . 1 1 1 2 1 Propulsion 1 | 1 1 . . 2 . . . . . . . . . . . 3 3 3 1 1 . . . . 2 2 3 2 3 2 3 3 1 Utility 6 | . 3 4 5 9 4 6 6 6 3 3 3 3 4 3 2 1 2 2 3 5 5 8 7 6 5 3 2 7 9 9 9 8 5 Weapon 2 | . 1 1 2 1 . 1 1 1 . . . . . . 1 1 1 1 2 2 1 1 1 1 . . 1 5 7 6 4 5 . Tool/Special . | . . . . . . . . . . . . . . . . . . . . . . . . . . . . . . . . . . Unused Backups 66 | . . . 1 10 17 . 4 . 2 . . . . . 1 . 1 3 1 . 1 . 1 2 . 2 2 9 1 1 . 5 2 Power 7 | . . . . . 1 . 3 . . . . . . . . . . . . . . . . . . 1 . 1 . . . 1 . Propulsion 13 | . . . . 2 4 . . . . . . . . . 1 . . 3 . . . . . . . . . 2 . 1 . . . Utility 32 | . . . . 5 7 . 1 . 2 . . . . . . . . . 1 . 1 . 1 2 . 1 1 5 1 . . 2 2 Weapon 9 | . . . 1 2 3 . . . . . . . . . . . . . . . . . . . . . . 1 . . . 2 . Tool/Special 5 | . . . . 1 2 . . . . . . . . . . . 1 . . . . . . . . . 1 . . . . . . Average Slot Usage (%) 89 | . 99 99 100 82 95 100 98 74 61 73 75 92 94 97 96 100 100 95 90 89 86 89 89 89 91 93 93 85 82 85 87 90 68 Engine 4 | . 10 11 14 14 . . . . . . . 2 5 5 5 5 5 4 . . . 4 5 5 5 3 3 . . . . . . Core 3 | . 3 2 . . 5 6 5 6 2 6 6 4 5 5 5 5 5 5 3 . . . . . . . . 5 4 4 4 4 2 Reactor 1 | . . . . . . . . . . . . . . . . . . . 6 10 9 5 5 5 5 3 4 1 4 4 4 4 2 Treads 4 | . 14 14 14 14 . . . . . . . . . . . . . . . . . . . . . . . . . . . . . Wheel 4 | . 14 14 14 14 . . . . . . . . . . . . . . . . . . . . . . . . . . . . . Hover 5 | . . . . . 2 . . . . . . . . . . . . . . . . . . . . . . 14 21 21 20 26 19 Flight 15 | . . . . . 36 40 39 26 24 40 40 37 35 38 38 41 41 40 34 31 29 31 31 31 31 30 33 10 . . . . . Device 12 | . 11 9 2 9 3 6 6 6 3 . . 4 5 5 3 5 5 2 7 10 10 10 10 10 10 19 24 19 23 26 24 25 28 Storage 7 | . 14 14 14 14 3 6 6 6 1 . . . . . 2 5 5 5 5 5 5 5 5 5 5 4 4 5 4 4 4 4 4 Processor 5 | . . . . . 1 6 6 6 6 6 6 5 5 8 10 11 11 11 10 10 10 10 10 10 10 5 4 8 8 8 8 4 4 Hackware 7 | . . . . . 27 20 19 20 14 13 13 22 23 19 14 11 11 11 13 15 13 15 15 15 15 13 9 2 4 4 4 . . Protection 2 | . 2 4 11 . . . . . . . . . . . . . . . . . . . . . . . 1 4 2 . . 2 2 Energy Cannon 1 | . . 5 14 . . . . . . . . . . . . . . . . . . . . . 2 1 . . . 3 3 1 1 Ballistic Gun 2 | . 8 14 14 . . . . . . . . . . . 2 5 . 1 . . . . . . . . . . . 1 12 15 1 Ballistic Cannon 1 | . 13 2 . . . . . . . . . . . . . . . . . . . . . . . . . 2 4 2 . . . Slashing Weapon 4 | . . . . 13 3 . . . . . 2 5 5 5 5 5 5 5 4 5 4 5 5 5 5 3 3 3 4 4 3 1 1 Peak Build Rating 289 | 7 10 31 31 17 66 65 78 63 63 47 52 82 79 99 99 101 104 98 113 113 115 112 109 113 120 141 160 267 268 282 289 289 248 Average Rating 114 | 5 8 16 29 13 53 65 69 59 45 47 49 71 79 93 93 96 95 92 104 113 108 109 108 109 116 127 142 228 265 275 283 256 173 On Entrance 103 | . 7 10 31 12 16 65 65 55 59 47 47 52 79 79 99 95 97 94 85 113 113 112 109 108 113 120 135 160 262 263 272 289 248 Naked Turns . | . . . . . . . . . . . . . . . . . . . . . . . . . . . . . . . . . . Heaviest Build 103 | 14 21 96 98 98 26 24 27 21 18 10 13 27 27 28 36 37 37 37 42 41 47 39 31 31 42 57 56 81 79 93 103 101 91 Greatest Support 114 | 10 16 16 10 10 31 24 36 20 28 28 28 35 31 42 41 41 41 41 48 45 51 47 47 47 46 58 67 112 108 108 108 108 114 Greatest Overweight (x) 11 | 1 2 9 9 9 . . 1 1 . . . . . . 1 . 11 1 . . 1 . . . . 1 1 2 . . . . 1 Average Overweight (x) . | . 1 2 9 8 . . . . . . . . . . . . 2 . . . . . . . . . . . . . . . . Largest Inventory Capacity 25 | 8 25 25 25 25 25 10 10 10 10 5 5 5 5 5 10 10 10 10 10 10 10 10 10 10 10 15 15 25 25 25 25 25 25 Average Capacity 17 | 7 9 14 25 25 8 10 10 10 5 5 5 5 5 5 7 10 10 10 10 10 10 10 10 10 10 11 15 21 25 25 25 25 25 Most Carried 25 | 3 10 25 25 25 15 9 10 10 10 4 4 5 5 5 9 9 10 10 10 10 10 10 10 10 10 14 15 25 25 25 25 25 24 Average Carried 14 | 2 8 13 24 16 6 9 9 9 5 4 4 4 5 4 5 9 9 9 8 10 9 9 9 9 9 10 14 20 24 24 22 22 9 Final Capacity 25 | 8 10 25 25 25 10 10 10 10 5 5 5 5 5 5 10 10 10 10 10 10 10 10 10 10 10 15 15 25 25 25 25 25 25 Final Carried 25 | 3 10 25 11 16 9 9 10 10 4 4 4 5 5 5 9 9 9 7 10 10 10 10 9 10 9 13 15 25 25 25 25 24 3 Class Distribution -------------------- 30% | Mutant 23% | Hacker-Ninja 21% | Hacker-Sprinter 7% | Scavenger-Ninja 7% | Hacker-Scout 3% | Scavenger-Sprinter Dominant Class ---------------- Mutant | -10/Materials Mutant | -10/Subcaves Mutant | -8/Recycling Mutant | -8/Scraptown Hacker-Sprinter | -6/Factory Hacker-Sprinter | -6/Waste Hacker-Sprinter | -6/Factory Hacker-Sprinter | -6/Lower Caves Hacker-Sprinter | -6/Lower Caves Hacker-Sprinter | -6/Data Miner Hacker-Sprinter | -5/Proximity Caves Hacker-Sprinter | -5/Factory Hacker-Sprinter | -5/Waste Hacker-Sprinter | -5/Factory Hacker-Sprinter | -5/Extension Commander-Sprinter | -5/Cetus Hacker-Sprinter | -5/Archives Hacker-Sprinter | -5/Hub_04(d) Hacker-Scout | -4/Factory Hacker-Scout | -4/Waste Hacker-Scout | -4/Factory Hacker-Scout | -4/Upper Caves Hacker-Scout | -4/Upper Caves Hacker-Scout | -4/Zhirov Hacker-Scout | -3/Proximity Caves Hacker-Ninja | -3/Research Hacker-Ninja | -3/Quarantine Hacker-Ninja | -3/Protoforge Hacker-Ninja | -2/Research Hacker-Ninja | -2/Testing Hacker-Ninja | -1/Access Scavenger-Sprinter | -1/Command Scavenger-Mutant | -1/Access_0 Resources | -11 -10 -10 -8 -8 -6 -6 -6 -6 -6 -6 -5 -5 -5 -5 -5 -5 -5 -5 -4 -4 -4 -4 -4 -4 -3 -3 -3 -3 -2 -2 -1 -1 -1 ----------- Run | Yrd Mat Sub Rec Scr Fac Was Fac Low Low Dat Pro Fac Was Fac Ext Cet Arc Hub Fac Was Fac Upp Upp Zhi Pro Res Qua Frg Res Tes Acc Com Ac0 Matter Collected 24392 | 270 494 208 62 50 340 . 367 30 40 . 20 135 . 125 190 115 120 29 159 . 131 207 110 . 20 523 169 16562 492 171 86 2244 923 Remotely 4260 | . . . . . . . . . . . . . . . . . . . . . . . . . . . . 4260 . . . . . Salvage Created 30246 | 82 418 91 . . 498 . 348 . 74 . 22 121 . 33 218 . 184 318 41 . 32 . . . 9 243 169 21504 1352 305 157 3340 687 Parts 1366 | 9 21 3 . . 31 . 18 . 8 . 2 4 . 1 18 . 17 15 . . 3 . . . 1 8 8 932 58 19 6 146 38 Haulers Intercepted 4 | . 1 . . . 1 . . . . . . 1 . . . . . . . . . . . . . . . 1 . . . . . Recyclers Shooed 2 | 1 . . . . . . . . . . . . . . 1 . . . . . . . . . . . . . . . . . . Parts Field Recycled . | . . . . . . . . . . . . . . . . . . . . . . . . . . . . . . . . . . Retrieved Matter . | . . . . . . . . . . . . . . . . . . . . . . . . . . . . . . . . . . Parts Self-Destructed 29 | . . 14 . . . . . . 8 . 6 . . . . . . . . . . . . . 1 . . . . . . . . Prevented 2 | . . . . . . . . . . . 2 . . . . . . . . . . . . . . . . . . . . . . Kills | -11 -10 -10 -8 -8 -6 -6 -6 -6 -6 -6 -5 -5 -5 -5 -5 -5 -5 -5 -4 -4 -4 -4 -4 -4 -3 -3 -3 -3 -2 -2 -1 -1 -1 ------- Run | Yrd Mat Sub Rec Scr Fac Was Fac Low Low Dat Pro Fac Was Fac Ext Cet Arc Hub Fac Was Fac Upp Upp Zhi Pro Res Qua Frg Res Tes Acc Com Ac0 Combat Hostiles Destroyed 343 | . 10 2 . . 8 . 3 . 3 . 1 . . . 2 . . 8 . . . . . . 1 1 . 275 13 2 2 4 8 Melee 23 | . . . . . 8 . 3 . 3 . 1 . . . 2 . . . . . . . . . 1 1 . 4 . . . . . Guns 9 | . 4 2 . . . . . . . . . . . . . . . 1 . . . . . . . . . 1 . . . 1 . Cannons 302 | . 6 . . . . . . . . . . . . . . . . . . . . . . . . . . 269 13 2 2 2 8 AOE 6 | . . . . . . . . . . . . . . . . . . 5 . . . . . . . . . 1 . . . . . Classes Destroyed 25 | 2 7 . . . 2 . 1 . . . . . . . . . . 1 . . . . . . 1 . . 11 . . . . . Worker 4 | . 2 . . . . . . . . . . . . . . . . . . . . . . . . . . . 1 1 . . . Builder 3 | . . . . . 1 . . . . . . . . . 2 . . . . . . . . . . . . . . . . . . Tunneler 3 | 2 . . . . . . . . . . . . . . . . . 1 . . . . . . . . . . . . . . . Hauler 5 | . 1 . . . 1 . . . . . . 1 . . . . . . . . . . . . . . . 2 . . . . . Recycler 4 | 1 . . . . . . . . . . . . . . . . . . . . . . . . . 1 1 . 1 . . . . Carrier 13 | . . . . . . . . . . . . . . . . . . . . . . . . . . . . 13 . . . . . Mechanic 6 | . 1 . . . . . . . . . . . . . . . . . . . . . . . . . . 5 . . . . . Operator 9 | . 1 . . . 1 . . . . . . . . . . . 5 . . . . . . . . 1 . . . 1 . . . Drone 7 | . . . . . . . . . . . . . . . . . . . . . . . . . 1 . . 6 . . . . . Watcher 22 | . 2 . . . 1 . 5 . . . . 1 . 1 1 . . . 1 . 1 . . . . 1 1 2 3 1 . 1 . Swarmer 52 | . 3 . . . 4 . . . 3 . 1 . . . . . . 5 . . . . . . . . . 36 . . . . . Saboteur 3 | . . . . . . . . . . . . . . . . . . . . . . . . . . . . 3 . . . . . Grunt 62 | . 7 2 . . 3 . 1 . . . . . . . . . . 1 . . . . . . . . . 41 6 . 1 . . Brawler 19 | . . . . . . . . . . . . . . . . . . . . . . . . . . . . 19 . . . . . Duelist 10 | . . . . . . . . . . . . . . . . . . . . . . . . . . . . 10 . . . . . Protector 16 | . . . . . . . . . . . . . . . . . . . . . . . . . . . . 16 . . . . . Researcher 5 | . . . . . . . . . . . . . . . . . . . . . . . . . . . . 4 . 1 . . . Sentry 21 | . . . . . . . 1 . . . . . . . 2 . . . . . . . . . . 1 . 12 4 . 1 . . Hunter 37 | . . . . . . . . . . . . . . . . . . 2 . . . . . . . . . 33 . . . 2 . Programmer 19 | . . . . . 1 . 1 . . . . . . . . . . . . . . . . . . . . 13 3 . . 1 . Enhanced Grunt 7 | . . . . . . . . . . . . . . . . . . . . . . . . . . . . . . . . . 7 Hotshot 4 | . . . . . . . . . . . . . . . . . . . . . . . . . . . . 4 . . . . . Decapitator 3 | . . . . . . . . . . . . . . . . . . . . . . . . . . . . 3 . . . . . Immortal 3 | . . . . . . . . . . . . . . . . . . . . . . . . . . . . 3 . . . . . Striker 27 | . . . . . . . . . . . . . . . . . . . . . . . . . . . . 25 . 2 . . . Executioner 50 | . . . . . . . . . . . . . . . . . . . . . . . . . . . . 50 . . . . . V-Series 1 | . . . . . . . . . . . . . . . . . . . . . . . . . . . . 1 . . . . . Scraphulk 1 | . . . . . . . . . . . . . . . . . . . . . . . . . . . . 1 . . . . . Best Kill Streak 45 | 2 2 2 . . 2 . 2 . 3 . 1 1 . 1 2 . 4 7 1 . 1 . . . 1 1 1 45 7 4 1 2 5 Combat Bots Only 41 | . 2 2 . . 2 . 2 . 3 . 1 . . . 1 . . 6 . . . . . . 1 1 . 41 7 2 1 2 5 Max Kills in Single Turn 5 | 1 1 1 . . 1 . 1 . 1 . 1 1 . 1 1 . 1 5 1 . 1 . . . 1 1 1 4 2 1 1 1 1 Gunslinging . | . . . . . . . . . . . . . . . . . . . . . . . . . . . . . . . . . . Exploded 4 | . . . . . . . . . . . . . . . . . . 4 . . . . . . . . . 1 . . . . . Melee 1 | . . . . . 1 . 1 . 1 . 1 . . . 1 . . . . . . . . . 1 1 . 1 . . . . . Uniques/NPCs Destroyed 2 | . . . . . . . . . . . . . . . . . . . . . . . . . . . . . . . . 1 1 MAIN.C Shell (-1/Command) A8 (-1/Access_0) Combat | -11 -10 -10 -8 -8 -6 -6 -6 -6 -6 -6 -5 -5 -5 -5 -5 -5 -5 -5 -4 -4 -4 -4 -4 -4 -3 -3 -3 -3 -2 -2 -1 -1 -1 -------- Run | Yrd Mat Sub Rec Scr Fac Was Fac Low Low Dat Pro Fac Was Fac Ext Cet Arc Hub Fac Was Fac Upp Upp Zhi Pro Res Qua Frg Res Tes Acc Com Ac0 Hostile Shots Fired 1260 | . 65 9 . . 58 . 53 . 78 . 4 18 . . 7 6 . 80 21 1 80 6 . . 4 37 8 329 8 20 . 49 319 Missed 535 | . 15 4 . . 22 . 26 . 32 . 2 11 . . 3 2 . 38 13 1 38 1 . . 1 13 4 146 3 11 . 13 136 Deflected 19 | . . . . . . . . . . . . . . . . . . . . . . . . . . . . 17 1 . . . 1 Hits 725 | . 50 5 . . 36 . 27 . 46 . 2 7 . . 4 4 . 42 8 . 42 5 . . 3 24 4 183 5 9 . 36 183 Melee 32 | . . . . . . . . . . . . . . . . . . . . . . . . . . . . 3 . . . . 29 Projectile 693 | . 50 5 . . 36 . 27 . 46 . 2 7 . . 4 4 . 42 8 . 42 5 . . 3 24 4 180 5 9 . 36 154 AOE 6 | . . 2 . . . . . . . . . . . . . . . . . . 1 . . . . . . 3 . . . . . Critical Strikes 35 | . 1 . . . 1 . 1 . . . 1 . . . . 1 . 1 . . 4 . . . . 1 . 11 1 1 . 1 10 Actively Blocked 18 | . . . . . . . . . . . . . . . . . . . . . . . . . . . . 5 1 1 . 1 10 Part Disruptions 14 | . . . . . . . 1 . . . . . . . . . . . . . . . . . . . . 1 . . . 7 5 Damage Taken 19117 | . 519 137 . . 559 . 429 . 700 . 30 149 . . 362 66 . 964 173 . 842 30 . . 65 805 193 5527 66 245 . 1289 5967 Core 3555 | . 152 . . . 151 . 53 . 405 . . 14 . . 75 26 . 350 21 . 222 30 . . 20 98 61 684 . . . 84 1109 Absorbed by Shields 440 | . . . . . 62 . . . . . . . . . 96 39 . . . . . . . . . . . 243 . . . . . Redirected to Shielding 1264 | . 15 . . . 39 . . . . . . . . . . . . . . . . . . . . 121 . 773 . . . . 316 Ignored by Resistances 254 | . . . . . . . . . . . . . . . . . . . . . . . . . . . . 78 25 . . 109 42 Regen/Repaired (Parts) 1927 | . 43 . . . 135 . 152 . . . . 73 . . 21 . . . 144 . 139 . . . . 84 64 937 . . . 100 35 Core Remaining (%) 52 | 100 . . . 39 . . . . . . 28 . . . . . . 53 . . . . . . 74 . . 5 . 100 . . 18 Volleys Fired 989 | 8 55 9 1 . 2 . 7 . . . . . . . 20 8 5 6 2 . 22 . . . 8 48 9 617 17 7 20 85 33 Largest 5 | 2 2 2 1 . 1 . 1 . . . . . . . 1 1 1 1 1 . 1 . . . 1 1 1 2 1 1 5 5 5 Hottest 300 | 90 100 80 80 . 5 . 5 . . . . . . . 33 35 35 35 35 . 40 . . . 40 40 40 300 50 130 200 200 300 Shots Fired 1296 | 16 101 12 1 . 2 . 7 . . . . . . . 21 9 5 6 2 . 22 . . . 8 48 9 607 18 7 26 291 78 Gun 484 | 16 52 9 . . . . . . . . . . . . 18 9 1 6 2 . . . . . . . . 38 . . 9 270 54 Cannon 768 | . 46 3 1 . . . . . . . . . . . . . . . . . 22 . . . 8 46 8 547 18 7 17 21 24 Launcher . | . . . . . . . . . . . . . . . . . . . . . . . . . . . . . . . . . . Special 44 | . 3 . . . 2 . 7 . . . . . . . 3 . 4 . . . . . . . . 2 1 22 . . . . . Kinetic 1014 | . 81 8 . . . . . . . . . . . . 18 9 1 6 2 . . . . . . . . 543 18 5 9 270 44 Thermal 239 | 16 20 2 1 . . . . . . . . . . . . . . . . . 22 . . . 8 46 8 42 . 2 17 21 34 Explosive . | . . . . . . . . . . . . . . . . . . . . . . . . . . . . . . . . . . Electromagnetic 2 | . . 2 . . . . . . . . . . . . . . . . . . . . . . . . . . . . . . . Robot Hit Streak 47 | 9 12 5 . . 1 . 2 . . . . . . . 6 4 3 . 1 . . . . . . 1 2 33 18 6 3 47 18 Robot Miss Streak 23 | 4 6 1 . . 1 . 1 . . . . . . . 1 3 2 . 1 . . . . . . 1 . 23 3 2 7 7 6 Penetration Max 3 | . . . . . . . . . . . . . . . 1 . . . . . . . . . . . . 3 1 . . 2 . Secondary Targets 1 | . . . . . . . . . . . . . . . . . . . . . . . . . . . . . . . . 1 . Max Gunslinging Chain 1 | . . . . . . . . . . . . . . . . . . . . . . . . . . . . . . . . 1 . Shots Hit Robots 1080 | 10 64 5 . . 22 . 20 . 8 . 1 4 . 1 13 6 8 1 3 . 5 . . . 1 8 5 570 23 8 4 231 59 Core Hits 1333 | 4 25 4 . . 10 . 6 . 3 . . 2 . 1 7 3 4 13 2 . 1 . . . 1 3 1 1031 43 7 3 118 41 Critical Kills 314 | . . . . . . . . . . . . . . . . . . . . . . . . . . . . 283 15 3 . 6 7 Critical Parts Destroyed 394 | . . . . . . . . . . . . . . . . . . 1 . . . . . . . . . 352 16 1 . 15 9 Critical Strikes 799 | 1 2 . . . 1 . . . 1 . . 1 . . 2 . . 1 . . 1 . . . . . . 713 31 4 . 22 19 Burn 1 | 1 . . . . . . . . . . . . . . . . . . . . . . . . . . . . . . . . . Meltdown 1 | . . . . . . . . . . . . . . . . . . . . . . . . . . . . . . . . 1 . Destroy 789 | . . . . . . . . . . . . . . . . . . 1 . . . . . . . . . 713 31 4 . 21 19 Blast 2 | . 2 . . . . . . . . . . . . . . . . . . . . . . . . . . . . . . . . Sever 5 | . . . . . 1 . . . . . . 1 . . 2 . . . . . 1 . . . . . . . . . . . . Impale 1 | . . . . . . . . . 1 . . . . . . . . . . . . . . . . . . . . . . . . Melee Attacks 602 | . . . . . 80 . 67 2 12 . 2 63 . 24 24 1 5 18 38 . 56 5 . . 7 54 34 32 13 14 10 37 4 Impact 10 | . . . . . 10 . . . . . . . . . . . . . . . . . . . . . . . . . . . . Slashing 430 | . . . . . 23 . . . . . 1 51 . 4 24 1 5 18 37 . 56 5 . . 7 54 34 32 13 14 10 37 4 Piercing 161 | . . . . . 47 . 67 2 12 . 1 12 . 20 . . . . . . . . . . . . . . . . . . . Sneak Attacks 36 | . . . . . 7 . 2 . . . 1 1 . . 6 . 5 1 1 . 1 . . . 1 5 1 3 . 1 . . . Combat Hostiles 13 | . . . . . 4 . 1 . . . 1 . . . 3 . . 1 . . . . . . 1 2 . . . . . . . Follow-up Attacks 5 | . . . . . 5 . . . . . . . . . . . . . . . . . . . . . . . . . . . . Damage Inflicted 30089 | 114 988 87 . . 1143 . 888 . 302 . 78 246 . 50 674 179 529 1180 72 . 319 . . . 72 627 425 8118 621 362 243 11070 1702 Guns 10320 | 114 445 67 . . . . . . . . . . . . 38 179 . 62 24 . . . . . . . . 715 . . 62 7542 1072 Cannons 8842 | . 543 20 . . . . . . . . . . . . . . . . . . . . . . . . . 6660 235 39 181 588 576 Explosions 1186 | . . . . . . . . . . . . . . . . . . 1047 . . . . . . . . . 112 27 . . . . Melee 9741 | . . . . . 1143 . 888 . 302 . 78 246 . 50 636 . 529 71 48 . 319 . . . 72 627 425 631 359 323 . 2940 54 Ramming . | . . . . . . . . . . . . . . . . . . . . . . . . . . . . . . . . . . Kinetic 16230 | . 914 56 . . . . . . . . . . . . 38 179 . 62 24 . . . . . . . . 6307 235 39 62 7542 772 Thermal 2901 | 114 74 . . . . . . . . . . . . . . . . . . . . . . . . . . 1068 . . 181 588 876 Explosive 112 | . . . . . . . . . . . . . . . . . . . . . . . . . . . . 112 . . . . . Electromagnetic 1105 | . . 31 . . . . . . . . . . . . . . . 1047 . . . . . . . . . . 27 . . . . Impact 57 | . . . . . 57 . . . . . . . . . . . . . . . . . . . . . . . . . . . . Slashing 7786 | . . . . . 506 . . . . . . 246 . . 636 . 529 71 48 . 319 . . . 72 627 425 631 359 323 . 2940 54 Piercing 1898 | . . . . . 580 . 888 . 302 . 78 . . 50 . . . . . . . . . . . . . . . . . . . Highest Corruption 23 | . . . . 3 . . 10 2 2 2 2 2 2 10 9 9 9 4 . 9 9 . . . . 4 . 23 1 1 . 1 . Average Corruption 14 | . . . . 3 . . 6 2 2 2 2 2 2 7 9 9 5 2 . 9 5 . . . . 2 . 19 1 1 . 1 . Corruption Purged 52 | . . . . . . . 10 . . . . . . 10 . . 9 . . . 9 . . . . 4 . 9 . . . 1 . Corruption Blocked . | . . . . . . . . . . . . . . . . . . . . . . . . . . . . . . . . . . Effects 347 | . . . . . . . 13 2 1 . . . . 4 8 10 5 3 . . 3 . . . . 3 . 287 1 3 . 4 . Message Errors 72 | . . . . . . . 4 1 . . . . . . 2 3 1 2 . . 1 . . . . . . 58 . . . . . Matter Fused 83 | . . . . . . . 3 . . . . . . 2 2 1 2 1 . . 1 . . . . 1 . 67 . 2 . 1 . Heat Flow Errors 33 | . . . . . . . 2 . 1 . . . . . . 1 1 . . . . . . . . 1 . 26 . 1 . . . Energy Discharges 36 | . . . . . . . . . . . . . . 1 1 1 . . . . 1 . . . . . . 32 . . . . . Parts Rejected 6 | . . . . . . . . . . . . . . . . . . . . . . . . . . . . 6 . . . . . Parts Fused 3 | . . . . . . . . . . . . . . . . . . . . . . . . . . . . 2 . . . 1 . Data Loss (minor) 48 | . . . . . . . 3 1 . . . . . . 1 2 . . . . . . . . . . . 41 . . . . . Data Loss (major) 7 | . . . . . . . . . . . . . . 1 . . 1 . . . . . . . . . . 5 . . . . . Misfires 3 | . . . . . . . . . . . . . . . 1 1 . . . . . . . . . . . . 1 . . . . Alerts 10 | . . . . . . . 1 . . . . . . . 1 1 . . . . . . . . . 1 . 5 . . . 1 . Misdirections 26 | . . . . . . . . . . . . . . . . . . . . . . . . . . . . 26 . . . . . Weapon Failures 20 | . . . . . . . . . . . . . . . . . . . . . . . . . . . . 19 . . . 1 . Overload Shots . | . . . . . . . . . . . . . . . . . . . . . . . . . . . . . . . . . . Overflow Damage 1363 | . 1 . . . 182 . 183 . 8 . 53 7 . . 32 . 81 86 . . 25 . . . . 46 187 322 41 . . 109 . Projectiles 126 | . 1 . . . . . . . . . . . . . . . . . . . . . . . . . . 54 . . . 71 . Explosions 121 | . . . . . . . . . . . . . . . . . . 86 . . . . . . . . . 35 . . . . . Melee 1116 | . . . . . 182 . 183 . 8 . 53 7 . . 32 . 81 . . . 25 . . . . 46 187 233 41 . . 38 . Knockbacks 78 | . 4 1 . . 1 . . . . . . . . . . . . . . . . . . . . . . 60 4 1 . . 7 Impact 1 | . . . . . 1 . . . . . . . . . . . . . . . . . . . . . . . . . . . . Kinetic 72 | . 4 1 . . . . . . . . . . . . . . . . . . . . . . . . . 56 3 1 . . 7 Secondary 5 | . . . . . . . . . . . . . . . . . . . . . . . . . . . . 4 1 . . . . Self-Inflicted Damage 289 | . . . . . . . . . . . . . . . . . . 289 . . . . . . . . . . . . . . . Shots 3 | . . . . . . . . . . . . . . . . . . 3 . . . . . . . . . . . . . . . Rammed . | . . . . . . . . . . . . . . . . . . . . . . . . . . . . . . . . . . Targets Rammed . | . . . . . . . . . . . . . . . . . . . . . . . . . . . . . . . . . . Kicked . | . . . . . . . . . . . . . . . . . . . . . . . . . . . . . . . . . . Crushed . | . . . . . . . . . . . . . . . . . . . . . . . . . . . . . . . . . . Highest Temperature 307 | 120 90 1 40 . 307 . 222 . 262 . . 97 10 109 50 183 264 91 5 . 20 104 170 81 119 133 50 244 31 184 256 285 203 Average Temperature 56 | 60 19 1 26 . 72 . 44 . 135 . . 18 5 30 18 28 81 27 4 . 6 29 78 31 45 31 30 94 11 76 85 131 100 Received Heat Transfer 1026 | . 213 9 . . 102 . 60 . 9 . . 39 . . 18 . . 72 9 . 75 . . . . 51 27 234 . 18 . 90 . Effects 8 | . . . . . . . . . . . . . . . . . . . . . . . . . . . . . . . 1 4 3 Energy Bleed 1 | . . . . . . . . . . . . . . . . . . . . . . . . . . . . . . . . . 1 Interference 7 | . . . . . . . . . . . . . . . . . . . . . . . . . . . . . . . 1 4 2 Siege Activations . | . . . . . . . . . . . . . . . . . . . . . . . . . . . . . . . . . . Martial Activations . | . . . . . . . . . . . . . . . . . . . . . . . . . . . . . . . . . . Shielding Activations . | . . . . . . . . . . . . . . . . . . . . . . . . . . . . . . . . . . Robots Disrupted . | . . . . . . . . . . . . . . . . . . . . . . . . . . . . . . . . . . Combat Hostiles . | . . . . . . . . . . . . . . . . . . . . . . . . . . . . . . . . . . Robots Corrupted 2 | . . . . . . . . . . . . . . . . . . 2 . . . . . . . . . . . . . . . Combat Hostiles 2 | . . . . . . . . . . . . . . . . . . 2 . . . . . . . . . . . . . . . Parts Fried 4 | . . . . . . . . . . . . . . . . . . 4 . . . . . . . . . . . . . . . Impact Corruptions . | . . . . . . . . . . . . . . . . . . . . . . . . . . . . . . . . . . Robots Melted 1 | . . . . . . . . . . . . . . . . . . . . . . . . . . . . . . . . 1 . Combat Hostiles 1 | . . . . . . . . . . . . . . . . . . . . . . . . . . . . . . . . 1 . Parts Melted 1 | 1 . . . . . . . . . . . . . . . . . . . . . . . . . . . . . . . . . Heat Transferred 2182 | 384 210 . . . . . . . . . . . . . . . . . . . . . . . . . . 730 . . 100 300 458 Parts Sabotaged . | . . . . . . . . . . . . . . . . . . . . . . . . . . . . . . . . . . Parts Stolen . | . . . . . . . . . . . . . . . . . . . . . . . . . . . . . . . . . . Parts Stripped . | . . . . . . . . . . . . . . . . . . . . . . . . . . . . . . . . . . Power Chain Reactions 1 | . . . . . 1 . . . . . . . . . . . . . . . . . . . . . . . . . . . . Alert | -11 -10 -10 -8 -8 -6 -6 -6 -6 -6 -6 -5 -5 -5 -5 -5 -5 -5 -5 -4 -4 -4 -4 -4 -4 -3 -3 -3 -3 -2 -2 -1 -1 -1 ------- Run | Yrd Mat Sub Rec Scr Fac Was Fac Low Low Dat Pro Fac Was Fac Ext Cet Arc Hub Fac Was Fac Upp Upp Zhi Pro Res Qua Frg Res Tes Acc Com Ac0 Maximum Alert Level 5 | . . . . . 2 . 1 . . . . 1 . 1 2 1 1 4 2 . 1 . . . . 1 . 5 5 5 3 3 . Low Security (%) 51 | 100 100 . 100 . 34 100 85 . . . . 41 100 87 80 3 33 73 2 100 99 . . . . 75 100 8 . . . 76 . Level 1 15 | . . . . . 48 . 14 . . . . 58 . 12 7 96 66 . 42 . . . . . . 24 . 10 . . . . . Level 2 5 | . . . . . 17 . . . . . . . . . 11 . . 19 55 . . . . . . . . 4 . . . 10 . Level 3 4 | . . . . . . . . . . . . . . . . . . 4 . . . . . . . . . 6 . . 100 12 . Level 4 5 | . . . . . . . . . . . . . . . . . . 2 . . . . . . . . . 16 . 36 . . . Level 5 18 | . . . . . . . . . . . . . . . . . . . . . . . . . . . . 53 92 63 . . . High Security . | . . . . . . . . . . . . . . . . . . . . . . . . . . . . . 7 . . . . Max Security . | . . . . . . . . . . . . . . . . . . . . . . . . . . . . . . . . . . Peak Influence 7300 | 10 99 . 36 . 451 7 272 . . . . 389 58 216 432 372 317 1110 554 114 201 . . . . 322 125 7300 4129 2264 985 841 . Initial 4106 | . . . . . . 7 4 . . . . 309 58 40 72 232 136 51 539 114 72 . . . . 300 . 17 4106 2232 750 623 . Average 1049 | . 25 . 3 . 248 7 111 . . . . 255 58 112 120 272 231 220 429 110 32 . . . . 101 46 2773 3899 1596 877 729 . Influence Increases 19100 | 15 362 80 161 . 1388 . 752 . 120 . 65 735 . 328 694 350 231 1279 472 . 578 . . . 5 824 422 8354 774 379 374 358 . Destroy 0b10 Robot/C 7600 | . 200 40 20 . 400 . 60 . 60 . 40 . . . 280 160 80 220 60 . . . . . . 20 . 5520 260 60 40 80 . Destroy 0b10 Robot/NC 390 | 15 35 . . . 20 . 25 . . . . 10 . 5 15 10 25 5 5 . 5 . . . 5 15 10 140 25 15 . 5 . Destroy Leader 1300 | . 36 10 . . 64 . 40 . . . . 4 . 2 52 . . 40 12 . 2 . . . . 12 2 904 76 2 20 22 . Allied During Kill 474 | . . . 1 . 22 . . . . . 10 . . . 102 121 105 . . . . . . . . . . 89 . . 24 . . Trap Triggered on 0b10 10 | . 10 . . . . . . . . . . . . . . . . . . . . . . . . . . . . . . . . Successful Hack 1006 | . 31 . 19 . 60 . 107 . . . . 42 . 42 52 9 . 22 106 . 42 . . . . 138 148 129 29 30 . . . Select Force Hacks 240 | . . . 120 . 70 . . . . . . . . . . . . 50 . . . . . . . . . . . . . . . Disable Machine 765 | . . . . . . . . . . . . 15 . 15 . . 15 195 15 . 15 . . . . 15 90 315 15 30 15 15 . Anti-Garrison Action 550 | . . . . . . . 200 . . . . . . 200 . . . . . . . . . . . . . 150 . . . . . Destroy Structure 1815 | . 5 . 1 . 47 . 50 . . . . 94 . 34 28 50 6 582 64 . 124 . . . . 114 52 372 39 42 75 36 . Advance Influence 600 | . . . . . . . . . . . . 300 . . . . . . . . . . . . . 300 . . . . . . . Partial Spotted 1005 | . . . . . 135 . 90 . . . . 150 . 30 45 . . 45 30 . 135 . . . . 210 60 60 15 . . . . Lose Combat Pursuer 2445 | . 45 30 . . 570 . 180 . 60 . 15 120 . . 120 . . 120 180 . 255 . . . . . 60 675 15 . . . . Active Sensor Use 900 | . . . . . . . . . . . . . . . . . . . . . . . . . . . . . 300 200 200 200 . Influence Decreases 18309 | 15 287 155 161 . 1366 15 506 124 115 134 50 584 108 238 426 424 424 328 1245 223 481 201 . . 5 824 391 1085 4104 3098 651 541 . Entered New Map 7683 | . . 37 . . . 15 3 94 25 134 . 6 108 18 76 184 206 98 561 213 32 75 . . . . . 14 3194 1738 501 351 . Time Decay 5580 | 15 287 100 155 . 476 . 433 30 40 . 30 368 . 220 230 150 198 90 294 10 353 126 . . 5 407 264 699 160 150 150 140 . Lost Part 550 | . . 8 . . 40 . 30 . 50 . . 30 . . 30 . . 60 . . 50 . . . . 40 . 152 . 10 . 50 . Lost Ally 806 | . . 10 6 . 100 . 40 . . . 20 30 . . 90 90 20 80 90 . 10 . . . . . . 220 . . . . . Purge Threat 3690 | . . . . . 750 . . . . . . 150 . . . . . . 300 . 36 . . . . 377 127 . 750 1200 . . . Squads Dispatched 154 | . 1 . . . 21 . 15 . . . . 11 . 8 4 . . 13 17 . 15 . . . . 12 3 12 5 6 6 5 . Investigation 100 | . 1 . . . 13 . 12 . . . . 9 . 6 3 . . 7 11 . 10 . . . . 10 . 8 4 2 2 2 . Extermination 26 | . . . . . 5 . 3 . . . . 2 . 2 . . . . 1 . 4 . . . . . 3 1 1 2 1 1 . Reinforcement 19 | . . . . . 2 . . . . . . . . . 1 . . 4 5 . 1 . . . . 2 . 3 . . 1 . . Assault 9 | . . . . . 1 . . . . . . . . . . . . 2 . . . . . . . . . . . 2 2 2 . Garrison . | . . . . . . . . . . . . . . . . . . . . . . . . . . . . . . . . . . Intercept . | . . . . . . . . . . . . . . . . . . . . . . . . . . . . . . . . . . Searches Triggered . | . . . . . . . . . . . . . . . . . . . . . . . . . . . . . . . . . . Data Miner Redirects 14 | . . . . . . . . . . . . . . . . . . 3 . . 1 . . . . . . . 3 3 2 2 . Construction Impeded 1 | . . . . . . . . . . . . . . . 1 . . . . . . . . . . . . . . . . . . Haulers Reinforced 4 | . . . . . 1 . . . . . . . . . . . . 1 . . . . . . . 2 . . . . . . . Active Scanning Responses 9 | . . . . . . . . . . . . . . . . . . . . . . . . . . . . . 3 2 2 2 . Cargo Convoy Interrupts . | . . . . . . . . . . . . . . . . . . . . . . . . . . . . . . . . . . Stealth | -11 -10 -10 -8 -8 -6 -6 -6 -6 -6 -6 -5 -5 -5 -5 -5 -5 -5 -5 -4 -4 -4 -4 -4 -4 -3 -3 -3 -3 -2 -2 -1 -1 -1 --------- Run | Yrd Mat Sub Rec Scr Fac Was Fac Low Low Dat Pro Fac Was Fac Ext Cet Arc Hub Fac Was Fac Upp Upp Zhi Pro Res Qua Frg Res Tes Acc Com Ac0 Distress Signals 48 | . 3 . . . 1 . 1 . . . . 2 . . 4 2 . 1 3 . 2 . . . . 13 . 16 . . . . . Communications Jammed 44 | . . . . . . . . . . . . . . . . . . . . . . . . . . . . 17 6 1 13 7 . Distress Signals 43 | . . . . . . . . . . . . . . . . . . . . . . . . . . . . 17 5 1 13 7 . Times Spotted 835 | . 23 7 . . 61 6 38 . 14 . 5 38 4 5 14 10 1 30 28 4 31 1 1 . 3 31 14 409 9 10 4 8 26 Peak Tracking Total 20 | . 4 2 . . 7 6 6 . 8 . 2 11 4 4 4 5 1 18 11 4 9 1 3 . 3 15 3 20 2 6 3 2 14 Tactical Retreats 117 | . 2 1 . . 17 . 11 . 2 . 1 10 . . 5 . . 3 7 . 12 1 . . . 8 4 29 1 . . . 3 Traps | -11 -10 -10 -8 -8 -6 -6 -6 -6 -6 -6 -5 -5 -5 -5 -5 -5 -5 -5 -4 -4 -4 -4 -4 -4 -3 -3 -3 -3 -2 -2 -1 -1 -1 ------- Run | Yrd Mat Sub Rec Scr Fac Was Fac Low Low Dat Pro Fac Was Fac Ext Cet Arc Hub Fac Was Fac Upp Upp Zhi Pro Res Qua Frg Res Tes Acc Com Ac0 Traps Triggered 41 | . 1 . . . 6 . 2 . . . . 2 . . . . . 1 1 . . . . . . 2 1 23 1 . . 1 . Indirectly . | . . . . . . . . . . . . . . . . . . . . . . . . . . . . . . . . . . Trap Hack Attempts 31 | . 31 . . . . . . . . . . . . . . . . . . . . . . . . . . . . . . . . Triggered . | . . . . . . . . . . . . . . . . . . . . . . . . . . . . . . . . . . Disarmed 24 | . . . . . 10 . . . . . . . . . . . . . . . 10 . . . . . . . . 4 . . . Reprogrammed 9 | . 5 . . . 4 . . . . . . . . . . . . . . . . . . . . . . . . . . . . Reused 1 | . 1 . . . . . . . . . . . . . . . . . . . . . . . . . . . . . . . . Traps Extracted . | . . . . . . . . . . . . . . . . . . . . . . . . . . . . . . . . . . Installed . | . . . . . . . . . . . . . . . . . . . . . . . . . . . . . . . . . . Triggered 1 | . 1 . . . . . . . . . . . . . . . . . . . . . . . . . . . . . . . . Machines | -11 -10 -10 -8 -8 -6 -6 -6 -6 -6 -6 -5 -5 -5 -5 -5 -5 -5 -5 -4 -4 -4 -4 -4 -4 -3 -3 -3 -3 -2 -2 -1 -1 -1 ---------- Run | Yrd Mat Sub Rec Scr Fac Was Fac Low Low Dat Pro Fac Was Fac Ext Cet Arc Hub Fac Was Fac Upp Upp Zhi Pro Res Qua Frg Res Tes Acc Com Ac0 Machines Disabled 67 | . . . . . . . . . . . . 1 . 1 . . 1 13 1 . 1 . . . . 1 6 30 1 2 1 4 4 Max in Single Turn 7 | . . . . . . . . . . . . 1 . 1 . . . 7 1 . 1 . . . . 1 1 2 1 1 1 1 1 Garrison Access 19 | . . . . . 2 . 2 . . . . 3 . 1 . . . 2 3 . 1 . . . . 3 1 1 . . . . . Network Hub 4 | . . . . . . . . . . . . . . . . . . 4 . . . . . . . . . . . . . . . Machines Repaired . | . . . . . . . . . . . . . . . . . . . . . . . . . . . . . . . . . . Machines Dismantled . | . . . . . . . . . . . . . . . . . . . . . . . . . . . . . . . . . . Machines Sabotaged 1 | . . . . . . . . . . . . . . . . . . 1 . . . . . . . . . . . . . . . Overloaded Fab Kills 2 | . . . . . 2 . . . . . . . . . . . . . . . . . . . . . . . . . . . . Hacking | -11 -10 -10 -8 -8 -6 -6 -6 -6 -6 -6 -5 -5 -5 -5 -5 -5 -5 -5 -4 -4 -4 -4 -4 -4 -3 -3 -3 -3 -2 -2 -1 -1 -1 --------- Run | Yrd Mat Sub Rec Scr Fac Was Fac Low Low Dat Pro Fac Was Fac Ext Cet Arc Hub Fac Was Fac Upp Upp Zhi Pro Res Qua Frg Res Tes Acc Com Ac0 Machines Accessed 287 | . 9 2 10 2 38 . 32 . . 4 . 22 . 13 14 2 . 11 22 . 26 . 1 4 1 20 13 24 7 8 . 2 . Terminals 147 | . 8 . 6 . 16 . 15 . . . . 8 . 6 11 2 . 10 8 . 11 . 1 . 1 7 10 12 6 8 . 1 . Fabricators 28 | . . . . . 4 . 3 . . . . 4 . 1 . . . . 4 . 5 . . . . 3 . 4 . . . . . Repair Stations 20 | . 1 . . . 4 . 3 . . . . 1 . . 1 . . . 2 . 3 . . . . 2 1 2 . . . . . Recycling Units 54 | . . . 4 . 8 . 8 . . . . 6 . 5 2 . . . 5 . 6 . . . . 5 . 3 1 . . 1 . Scanalyzers 9 | . . . . . 3 . 1 . . . . . . . . . . . . . . . . . . 1 1 3 . . . . . Garrison Access 17 | . . . . . 3 . 2 . . . . 3 . 1 . . . 1 3 . 1 . . . . 2 1 . . . . . . Total Hacks 1067 | . 31 3 33 6 124 . 109 . . 29 . 63 . 51 46 7 . 17 86 . 115 . 1 17 1 73 52 88 38 71 . 6 . Successful 754 | . 24 3 20 6 92 . 80 . . 29 . 50 . 34 32 5 . 12 60 . 89 . 1 17 1 53 30 56 21 37 . 2 . Failed 309 | . 7 . 13 . 32 . 28 . . . . 12 . 17 14 2 . 5 25 . 25 . . . . 20 22 32 17 34 . 4 . Catastrophic 37 | . . . 3 . 2 . 2 . . . . 2 . . 1 . . 1 . . 2 . . . . 2 1 7 5 8 . 1 . Database Lockouts 4 | . . . . . . . 1 . . . . 1 . . . . . . 1 . 1 . . . . . . . . . . . . Manual 644 | . 29 . 26 . 80 . 64 . . . . 40 . 34 35 1 . 16 52 . 69 . . . . 35 31 49 30 47 . 6 . Terminals 750 | . 29 . 24 . 74 . 74 . . . . 36 . 42 40 7 . 16 61 . 80 . 1 . 1 49 45 61 35 71 . 4 . Fabricators 80 | . . . . . 13 . 10 . . . . 13 . 1 . . . . 9 . 17 . . . . 6 . 11 . . . . . Repair Stations 59 | . 2 . . . 8 . 12 . . . . 4 . . 4 . . . 6 . 10 . . . . 6 3 4 . . . . . Recycling Units 67 | . . . 9 . 8 . 8 . . . . 7 . 6 2 . . . 7 . 7 . . . . 5 . 3 3 . . 2 . Scanalyzers 34 | . . . . . 15 . 2 . . . . . . . . . . . . . . . . . . 5 3 9 . . . . . Garrison Access 22 | . . . . . 6 . 3 . . . . 3 . 2 . . . 1 3 . 1 . . . . 2 1 . . . . . . Terminal Hacks 285 | . 4 3 4 6 27 . 20 . . 29 . 9 . 14 9 5 . 2 21 . 33 . 1 17 1 16 13 13 11 27 . . . Record 31 | . . 1 . 5 . . . . . 11 . . . . . 4 . . . . . . 1 5 1 . 2 1 . . . . . Part Schematic 29 | . . . . . 1 . 3 . . 10 . 1 . . . . . . 1 . 4 . . 4 . 1 . 4 . . . . . Robot Schematic 7 | . . . 1 . . . . . . 5 . . . . . . . . . . . . . . . 1 . . . . . . . Robot Analysis 20 | . 2 . . . 4 . 3 . . . . . . 1 . . . . 1 . . . . 4 . . 2 1 . 2 . . . Prototype ID Bank 22 | . . . . . 2 . 2 . . 3 . . . 2 . . . . 1 . 5 . . 4 . 2 1 . . . . . . Open Door 2 | . . 1 . . . . . . . . . . . . . 1 . . . . . . . . . . . . . . . . . Level Access Points 2 | . . . . . . . . . . . . . . . . . . . 1 . 1 . . . . . . . . . . . . Branch Access Points 7 | . . . . . 1 . . . . . . 1 . . 1 . . . 2 . 1 . . . . 1 . . . . . . . Emergency Access Points 3 | . . . . . . . 1 . . . . . . 1 . . . . . . . . . . . . . 1 . . . . . Machine Index 2 | . . . . . 1 . . . . . . . . . . . . . 1 . . . . . . . . . . . . . . Terminal Index 12 | . 1 . 1 . 1 . 1 . . . . 1 . 1 1 . . 1 1 . . . . . . 1 . 1 . 1 . . . Fabricator Index 3 | . . . . . 1 . . . . . . . . . . . . . 1 . . . . . . 1 . . . . . . . Repair Station Index 3 | . . . . . . . 1 . . . . . . . . . . . . . . . . . . 1 . 1 . . . . . Recycling Unit Index 5 | . . . 1 . . . 1 . . . . . . . . . . . 1 . . . . . . 1 . 1 . . . . . Scanalyzer Index 2 | . . . . . . . . . . . . . . . . . . . 1 . 1 . . . . . . . . . . . . Garrison Index 4 | . . . . . . . . . . . . . . . . . . . 1 . 1 . . . . 1 . . . 1 . . . Alert Level 11 | . . . . . . . 2 . . . . . . 1 . . . . . . 1 . . . . 1 1 2 1 2 . . . Unreport Threat 29 | . . . . . 5 . . . . . . 1 . . . . . . 2 . 1 . . . . 4 3 . 5 8 . . . Locate Traps 13 | . . . . . 4 . 1 . . . . . . 2 . . . . . . 4 . . . . . . . . 2 . . . Disarm Traps 6 | . . . . . 2 . . . . . . . . . . . . . . . 3 . . . . . . . . 1 . . . Reprogram Traps 1 | . . . . . 1 . . . . . . . . . . . . . . . . . . . . . . . . . . . . Security Status 2 | . . . . . . . . . . . . . . . . . . . . . 1 . . . . . . . . 1 . . . Investigation Status 2 | . . . . . . . . . . . . . . . 1 . . . . . . . . . . . . . . 1 . . . Extermination Status 5 | . . . . . . . 1 . . . . . . 1 . . . . 1 . . . . . . . 1 . . 1 . . . Reinforcement Status 1 | . . . . . . . . . . . . . . . . . . . . . . . . . . . . . . 1 . . . Recall Investigation 4 | . . . . . . . . . . . . . . . 2 . . . . . . . . . . . . . 1 1 . . . Recall Extermination 9 | . . . . . . . 1 . . . . 1 . 1 . . . . . . 3 . . . . . 1 . . 2 . . . Recall Assault 1 | . . . . . 1 . . . . . . . . . . . . . . . . . . . . . . . . . . . . Hauler Manifests 1 | . . . . . . . . . . . . . . . . . . . . . 1 . . . . . . . . . . . . Registered Components 7 | . . . . . 1 . 1 . . . . 1 . . . . . . 1 . . . . . . 1 . . 1 1 . . . Registered Prototypes 5 | . . . . . . . 1 . . . . . . 1 . . . . 1 . 1 . . . . . 1 . . . . . . Zone Layout 31 | . 1 . 1 . 2 . 1 . . . . 3 . 3 4 . . 1 4 . 5 . . . . . 1 . 3 2 . . . Proto ID Catalog 2 | . . . . 1 . . . . . . . . . . . . . . . . . . . . . . . 1 . . . . . Release Object 1 | . . 1 . . . . . . . . . . . . . . . . . . . . . . . . . . . . . . . Fabricator Hacks 48 | . . . . . 3 . 7 . . . . 8 . 1 . . . . 4 . 10 . . . . 6 . 9 . . . . . Network Status 5 | . . . . . . . 1 . . . . 1 . 1 . . . . 1 . 1 . . . . . . . . . . . . Load Schematic 26 | . . . . . 2 . 4 . . . . 4 . . . . . . 2 . 6 . . . . 3 . 5 . . . . . Build 17 | . . . . . 1 . 2 . . . . 3 . . . . . . 1 . 3 . . . . 3 . 4 . . . . . Repair Station Hacks 44 | . 2 . . . 4 . 11 . . . . 4 . . 2 . . . 3 . 6 . . . . 6 2 4 . . . . . Scan Component 23 | . 1 . . . 2 . 6 . . . . 2 . . 1 . . . 2 . 3 . . . . 3 1 2 . . . . . Repair 21 | . 1 . . . 2 . 5 . . . . 2 . . 1 . . . 1 . 3 . . . . 3 1 2 . . . . . Recycling Unit Hacks 3 | . . . 3 . . . . . . . . . . . . . . . . . . . . . . . . . . . . . . Retrieve Components 3 | . . . 3 . . . . . . . . . . . . . . . . . . . . . . . . . . . . . . Scanalyzer 25 | . . . . . 12 . 2 . . . . . . . . . . . . . . . . . . 3 1 7 . . . . . Insert Component 14 | . . . . . 6 . 1 . . . . . . . . . . . . . . . . . . 1 1 5 . . . . . Analyze 11 | . . . . . 6 . 1 . . . . . . . . . . . . . . . . . . 2 . 2 . . . . . Garrison Access Hacks 14 | . . . . . 2 . 1 . . . . 3 . . . . . 1 3 . 1 . . . . 2 1 . . . . . . Seal Access 14 | . . . . . 2 . 1 . . . . 3 . . . . . 1 3 . 1 . . . . 2 1 . . . . . . Unauthorized Hacks 332 | . 18 . 13 . 44 . 39 . . . . 26 . 19 21 . . 9 29 . 39 . . . . 20 13 23 7 10 . 2 . Terminals 246 | . 18 . 9 . 25 . 27 . . . . 17 . 13 19 . . 9 18 . 26 . . . . 15 13 20 7 10 . . . Track 38 | . 5 . . . 3 . 3 . . . . 2 . 2 4 . . 1 1 . 6 . . . . 3 4 3 1 . . . . Assimilate 18 | . 2 . . . 1 . 3 . . . . 4 . 1 2 . . . 3 . 2 . . . . . . . . . . . . Botnet 85 | . 4 . 4 . 7 . 9 . . . . 5 . 5 6 . . 2 8 . 10 . . . . 5 3 8 5 4 . . . Disrupt 19 | . 1 . . . 3 . 2 . . . . 1 . . 2 . . . 1 . 2 . . . . 2 1 3 . 1 . . . Operators 3 | . 1 . . . 1 . . . . . . . . . . . . . . . 1 . . . . . . . . . . . . Skim 77 | . 5 . 5 . 10 . 10 . . . . 5 . 5 5 . . . 5 . 5 . . . . 5 5 6 1 5 . . . Sabotage 6 | . . . . . . . . . . . . . . . . . . 6 . . . . . . . . . . . . . . . Fabricators 22 | . . . . . 6 . 3 . . . . 3 . . . . . . 4 . 6 . . . . . . . . . . . . Prioritize 9 | . . . . . 2 . 1 . . . . 2 . . . . . . 1 . 3 . . . . . . . . . . . . Liberate 3 | . . . . . 1 . . . . . . . . . . . . . 2 . . . . . . . . . . . . . . Overload 1 | . . . . . 1 . . . . . . . . . . . . . . . . . . . . . . . . . . . . Download 1 | . . . . . 1 . . . . . . . . . . . . . . . . . . . . . . . . . . . . Recompile 8 | . . . . . 1 . 2 . . . . 1 . . . . . . 1 . 3 . . . . . . . . . . . . Repair Stations 5 | . . . . . 2 . . . . . . . . . . . . . 2 . 1 . . . . . . . . . . . . Patch 5 | . . . . . 2 . . . . . . . . . . . . . 2 . 1 . . . . . . . . . . . . Recycling Units 54 | . . . 4 . 8 . 8 . . . . 6 . 5 2 . . . 5 . 6 . . . . 5 . 3 . . . 2 . Reject 1 | . . . . . . . . . . . . . . . . . . . . . . . . . . . . . . . . 1 . Mask 1 | . . . . . . . . . . . . . . . . . . . . . . . . . . . . . . . . 1 . Tunnel 4 | . . . 4 . . . . . . . . . . . . . . . . . . . . . . . . . . . . . . Fedlink 46 | . . . . . 8 . 8 . . . . 6 . 5 2 . . . 5 . 6 . . . . 5 . 1 . . . . . Scraphulk 2 | . . . . . . . . . . . . . . . . . . . . . . . . . . . . 2 . . . . . Scanalyzers . | . . . . . . . . . . . . . . . . . . . . . . . . . . . . . . . . . . Garrison Access 5 | . . . . . 3 . 1 . . . . . . 1 . . . . . . . . . . . . . . . . . . . Broadcast 1 | . . . . . 1 . . . . . . . . . . . . . . . . . . . . . . . . . . . . Decoy 1 | . . . . . 1 . . . . . . . . . . . . . . . . . . . . . . . . . . . . Watchers 1 | . . . . . 1 . . . . . . . . . . . . . . . . . . . . . . . . . . . . Jam 2 | . . . . . . . 1 . . . . . . 1 . . . . . . . . . . . . . . . . . . . Data Cores Recovered 2 | . 1 . . . . . . . . . . . . . . . . . . . . . . . . . . . . 1 . . . Used . | . . . . . . . . . . . . . . . . . . . . . . . . . . . . . . . . . . Hacking Detections 158 | . 8 . 8 . 23 . 19 . . . . 13 . 8 10 1 . 5 7 . 10 . . . . 10 8 14 6 7 . 1 . Full Trace Events 15 | . . . 1 . . . 1 . . . . 2 . . 1 . . 1 1 . . . . . . 3 . 4 1 . . . . Feedback Events . | . . . . . . . . . . . . . . . . . . . . . . . . . . . . . . . . . . Feedback Blocked . | . . . . . . . . . . . . . . . . . . . . . . . . . . . . . . . . . . Robot Schematics Acquired 13 | . . . 1 . . . . . . 5 . . . . . . . . . . . . . . . 1 . 4 . 2 . . . Robots Built . | . . . . . . . . . . . . . . . . . . . . . . . . . . . . . . . . . . Authchips . | . . . . . . . . . . . . . . . . . . . . . . . . . . . . . . . . . . Time . | . . . . . . . . . . . . . . . . . . . . . . . . . . . . . . . . . . Total Robot Build Rating . | . . . . . . . . . . . . . . . . . . . . . . . . . . . . . . . . . . Part Schematics Acquired 92 | . . . . . 7 . 4 . . 10 . 1 . 5 7 1 1 2 9 . 14 1 . 4 3 2 . 19 . 2 . . . Parts Built 24 | . . . . . 2 . 3 . . . . 5 . . . . . . 1 . 4 . . . . 4 . 5 . . . . . Authchips 6 | . . . . . 1 . 2 . . . . 1 . . . . . . . . 2 . . . . . . . . . . . . Time 715 | . . . . . 47 . 79 . . . . 105 . . . . . . 21 . 170 . . . . 112 . 181 . . . . . Total Part Build Rating 133 | . . . . . 10 . 18 . . . . 26 . . . . . . 4 . 28 . . . . 15 . 32 . . . . . Parts Repaired 21 | . 1 . . . 2 . 5 . . . . 2 . . 1 . . . 1 . 3 . . . . 3 1 2 . . . . . Time 613 | . 26 . . . 50 . 123 . . . . 42 . . 28 . . . 50 . 119 . . . . 79 22 74 . . . . . Parts Recycled . | . . . . . . . . . . . . . . . . . . . . . . . . . . . . . . . . . . Recycled Matter . | . . . . . . . . . . . . . . . . . . . . . . . . . . . . . . . . . . Retrieved Matter . | . . . . . . . . . . . . . . . . . . . . . . . . . . . . . . . . . . Retrieved Components 8 | . . . 8 . . . . . . . . . . . . . . . . . . . . . . . . . . . . . . Parts Scanalyzed 10 | . . . . . 5 . 1 . . . . . . . . . . . . . . . . . . 1 . 3 . . . . . Part Schematics Acquired 9 | . . . . . 5 . 1 . . . . . . . . . . . . . . . . . . 1 . 2 . . . . . Parts Damaged 2 | . . . . . . . . . . . . . . . . . . . . . . . . . . 1 . 1 . . . . . Bothacking | -11 -10 -10 -8 -8 -6 -6 -6 -6 -6 -6 -5 -5 -5 -5 -5 -5 -5 -5 -4 -4 -4 -4 -4 -4 -3 -3 -3 -3 -2 -2 -1 -1 -1 ------------ Run | Yrd Mat Sub Rec Scr Fac Was Fac Low Low Dat Pro Fac Was Fac Ext Cet Arc Hub Fac Was Fac Upp Upp Zhi Pro Res Qua Frg Res Tes Acc Com Ac0 Used RIF Installer . | . . . . . . . . . . . . . . . . . . . . . . . . . . . . . . . . . . Robots Hacked 31 | . . . . . 1 . 2 . . . . . . . 3 . 3 . 1 . . . . . . . 1 20 . . . . . Non-combat 6 | . . . . . . . . . . . . . . . 3 . 3 . . . . . . . . . . . . . . . . Combat 2 | . . . . . . . . . . . . . . . . . . . . . . . . . . . 1 1 . . . . . Robot Hacks Applied 9 | . . . . . . . . . . . . . . . 3 . 4 . . . . . . . . . 1 1 . . . . . parse_system 2 | . . . . . . . . . . . . . . . . . 1 . . . . . . . . . . 1 . . . . . no_distress 3 | . . . . . . . . . . . . . . . 3 . . . . . . . . . . . . . . . . . . check_alert 3 | . . . . . . . . . . . . . . . . . 3 . . . . . . . . . . . . . . . . find_scanalyzer 1 | . . . . . . . . . . . . . . . . . . . . . . . . . . . 1 . . . . . . Manual 23 | . . . . . 1 . 2 . . . . . . . . . . . 1 . . . . . . . . 19 . . . . . Relay Couplers Released 8 | . . . . . . . . . . . . . . . . . . 3 . . . . . . . 3 . 2 . . . . . Machine Destruction 8 | . . . . . . . . . . . . . . . . . . 3 . . . . . . . 3 . 2 . . . . . Fabnet Peak Effective % . | . . . . . . . . . . . . . . . . . . . . . . . . . . . . . . . . . . Robots Rewired 3 | . . . . . . . . . . . . . . . 3 . . . . . . . . . . . . . . . . . . Allies Hacked . | . . . . . . . . . . . . . . . . . . . . . . . . . . . . . . . . . . Hacks Repelled . | . . . . . . . . . . . . . . . . . . . . . . . . . . . . . . . . . . Allies | -11 -10 -10 -8 -8 -6 -6 -6 -6 -6 -6 -5 -5 -5 -5 -5 -5 -5 -5 -4 -4 -4 -4 -4 -4 -3 -3 -3 -3 -2 -2 -1 -1 -1 -------- Run | Yrd Mat Sub Rec Scr Fac Was Fac Low Low Dat Pro Fac Was Fac Ext Cet Arc Hub Fac Was Fac Upp Upp Zhi Pro Res Qua Frg Res Tes Acc Com Ac0 Total Allies 68 | . 1 1 . 1 5 . 4 . . . 1 3 . 1 11 5 . . 6 . 2 . . . . . . 21 . . 3 3 . Largest Group 9 | . 1 1 1 1 3 . 1 . . . 1 2 . 1 7 9 6 4 4 . 1 . . . . . . 5 . . 3 3 . Highest-Rated Group 701 | . 10 19 19 61 111 . 26 . . . 96 36 . 10 305 701 618 368 167 . 10 . . . . . . 278 . . 379 376 . Highest-Rated Ally 159 | . 10 19 19 61 61 . 26 . . . 96 26 . 10 159 153 147 96 47 . 10 . . . . . . 139 . . 135 132 . Total Orders 13 | . . . . 1 . . . . . . . 2 . . . 3 3 . . . . . . . . . . 2 . . . . 2 STAY 3 | . . . . 1 . . . . . . . 1 . . . . . . . . . . . . . . . 1 . . . . . ROAM 3 | . . . . . . . . . . . . . . . . 1 2 . . . . . . . . . . . . . . . . FOLLOW 5 | . . . . . . . . . . . . 1 . . . 2 1 . . . . . . . . . . 1 . . . . . EXPLORE 2 | . . . . . . . . . . . . . . . . . . . . . . . . . . . . . . . . . 2 Ally Attacks 274 | . . . 4 . 51 . . . . . 5 . . . 43 61 34 21 21 . . . . . . . . 25 . . 6 3 . Total Damage 9319 | . . . 91 . 1596 . . . . . 96 . . . 1063 2385 1134 869 669 . . . . . . . . 1209 . . 183 24 . Kills 51 | . . . 1 . 12 . . . . . 1 . . . 12 10 4 3 3 . . . . . . . . 5 . . . . . Allies Corrupted . | . . . . . . . . . . . . . . . . . . . . . . . . . . . . . . . . . . Allies Melted 8 | . . . . . 3 . . . . . . . . . . . . . . . . . . . . . . 5 . . . . . Intel | -11 -10 -10 -8 -8 -6 -6 -6 -6 -6 -6 -5 -5 -5 -5 -5 -5 -5 -5 -4 -4 -4 -4 -4 -4 -3 -3 -3 -3 -2 -2 -1 -1 -1 ------- Run | Yrd Mat Sub Rec Scr Fac Was Fac Low Low Dat Pro Fac Was Fac Ext Cet Arc Hub Fac Was Fac Upp Upp Zhi Pro Res Qua Frg Res Tes Acc Com Ac0 Active Infowar (turns) 21617 | 12 1217 111 . 2936 877 15 1282 73 55 . . 671 15 431 375 300 272 71 647 29 1138 265 65 56 170 1356 634 5936 352 302 314 1232 408 Optics 5943 | . . . . . . . . . . . . . . . . . . . . . . . . . . . . 4737 352 302 314 238 . Sensors 9314 | . . . . . 441 15 1212 73 55 . . 468 . 431 375 300 272 71 647 29 993 265 65 52 170 1356 634 1390 . . . . . A.S.S. 5990 | . . . . . . . . . . . . . . . . . . . . . . . . . . . . 4461 352 302 314 561 . Structural 8568 | . . 56 . 2936 436 . . . . . . . . . . . . . 338 29 1023 213 65 54 170 1224 634 1390 . . . . . Seismic 1284 | 12 1217 55 . . . . . . . . . . . . . . . . . . . . . . . . . . . . . . . Triangulation 1065 | . . . . . . . . . . . . . . . . . . . . . . . . . . . . . . . . 657 408 Cloaking 6178 | . . . . . . . . . . . . . . . . . . . . . . . . . . . . 4435 352 302 314 775 . Jamming 2637 | . . . . . . . . . . . . . . . . . . . . . . . . . . . 3 1506 352 223 314 239 . ECM 2565 | . . . . . . . 70 . . . . 237 15 . . . . . 17 . 280 52 . . . 1346 450 22 . . 25 . 51 Robot Analysis Total 20 | . 2 . . . 4 . 3 . . . . . . 1 . . . . 1 . . . . 4 . . 2 1 . 2 . . . Derelict Logs Recovered 8 | . . 2 . 2 . . . 1 . . 1 . . . . . . . . . . 1 1 . . . . . . . . . . Drone Launches 2 | . . . . . . . . . . . . . . . . . . . . . . . . . . . . . . . . . 2 Drone Recoveries . | . . . . . . . . . . . . . . . . . . . . . . . . . . . . . . . . . . Exploration | -11 -10 -10 -8 -8 -6 -6 -6 -6 -6 -6 -5 -5 -5 -5 -5 -5 -5 -5 -4 -4 -4 -4 -4 -4 -3 -3 -3 -3 -2 -2 -1 -1 -1 ------------- Run | Yrd Mat Sub Rec Scr Fac Was Fac Low Low Dat Pro Fac Was Fac Ext Cet Arc Hub Fac Was Fac Upp Upp Zhi Pro Res Qua Frg Res Tes Acc Com Ac0 Turns Passed 27335 | 76 1494 769 1484 4551 1379 15 1313 75 96 18 95 850 15 637 493 313 407 182 647 29 1138 265 65 56 170 1356 634 6071 352 302 314 1246 428 Spaces Moved 39347 | 45 851 489 671 2234 3487 63 2122 229 162 86 313 1952 67 1070 825 359 140 573 1493 105 2231 675 247 150 320 2662 1280 9753 658 652 317 2623 443 Core 32 | 3 . . . . . . . . . . . . . . . . 29 . . . . . . . . . . . . . . . . Treads . | . . . . . . . . . . . . . . . . . . . . . . . . . . . . . . . . . . Legs . | . . . . . . . . . . . . . . . . . . . . . . . . . . . . . . . . . . Wheels 4287 | 42 851 489 671 2234 . . . . . . . . . . . . . . . . . . . . . . . . . . . . . Hover 11106 | . . . . . 2 . . . . . . . . . . . . . . . . . . . . . . 6411 658 652 317 2623 443 Flight 23922 | . . . . . 3485 63 2122 229 162 86 313 1952 67 1070 825 359 111 573 1493 105 2231 675 247 150 320 2662 1280 3342 . . . . . Fastest Speed 7 | 50 95 95 215 200 12 23 14 26 18 21 21 14 21 18 19 19 19 18 13 23 16 24 24 21 21 7 7 7 36 36 36 33 24 Average Speed 42 | 87 102 124 215 200 22 23 23 27 27 21 21 19 21 19 21 19 139 19 20 23 23 24 24 22 21 20 19 29 36 36 36 33 42 Slowest Speed 600 | 95 115 215 215 215 60 23 90 78 37 21 21 24 21 21 93 19 600 91 23 23 92 24 24 24 21 94 94 180 36 36 36 37 115 Overloaded Moves 344 | . . . . . 6 . 14 . 6 . . 8 . . . . . . 7 . 28 . . . . 31 25 62 . . . . 157 Propulsion Burnouts . | . . . . . . . . . . . . . . . . . . . . . . . . . . . . . . . . . . Robots Hopped 171 | . . . . . 28 2 21 . 5 . . . 2 4 16 . . 12 18 4 15 . . . 1 4 7 32 . . . . . Potential Cave-ins 72 | . . . . . . . . . . . . . . . 18 . . . . . 3 . . . . 18 . 22 . . 8 2 1 Cave-ins Triggered 4 | . . . . . . . . . . . . . . . 1 . . . . . . . . . . 1 . 2 . . . . . Teleports 4 | . . . . . . . . . . . . . . . . . . . . . . . . . . . . 2 . . . 1 1 Exploration Rate (%) 59 | 4 97 26 92 89 67 68 62 47 31 69 56 40 68 28 63 79 78 64 51 83 55 88 53 61 53 72 78 91 25 67 12 55 49 Regions Visited 33 Branch Regions 20 Pre-discovered Areas 33 | . 2 1 7 2 4 . 4 . . 1 1 1 . . . . . . 2 . 1 . 1 3 . 1 2 . . . . . . Known Exits Taken 23 | . . 1 1 . . . 1 1 1 1 1 . . 1 1 1 1 1 . . 1 1 1 1 1 1 1 1 1 1 1 . . Unknown Exits Taken 4 | 1 1 . . 1 . . . . . . . . . . . . . . . . . . . . . . . . . . . 1 . Scrap Searched 18 | . . 1 . 5 . . . 1 . . 4 . . . . . . . . . . 4 3 . . . . . . . . . . Spaces Dug 508 | . 3 1 1 . 46 . 50 2 . . . 47 . 17 21 . . 16 30 . 61 5 . . 8 72 24 41 8 10 18 27 . Terrain Destroyed 1280 | . 3 1 1 . 46 . 50 2 . . . 47 . 17 32 . . 513 32 . 67 5 . . 12 90 26 168 12 13 38 76 29 Melee 387 | . . . . . 46 . 50 2 . . . 47 . 17 14 . . 16 30 . 45 5 . . 4 44 20 11 8 8 10 10 . Projectile 279 | . 3 1 1 . . . . . . . . . . . 18 . . 1 2 . 22 . . . 8 46 6 62 . 2 28 65 14 AOE 510 | . . . . . . . . . . . . . . . . . . 496 . . . . . . . . . 14 . . . . . Terrain Rammed . | . . . . . . . . . . . . . . . . . . . . . . . . . . . . . . . . . . Walls Destroyed . | . . . . . . . . . . . . . . . . . . . . . . . . . . . . . . . . . . Machines Disabled . | . . . . . . . . . . . . . . . . . . . . . . . . . . . . . . . . . . Actions | -11 -10 -10 -8 -8 -6 -6 -6 -6 -6 -6 -5 -5 -5 -5 -5 -5 -5 -5 -4 -4 -4 -4 -4 -4 -3 -3 -3 -3 -2 -2 -1 -1 -1 --------- Run | Yrd Mat Sub Rec Scr Fac Was Fac Low Low Dat Pro Fac Was Fac Ext Cet Arc Hub Fac Was Fac Upp Upp Zhi Pro Res Qua Frg Res Tes Acc Com Ac0 Total 47974 | 62 1361 635 714 2310 3930 61 2786 237 182 85 337 2337 65 1466 1066 592 340 600 1746 105 2697 769 252 173 402 3340 1602 12273 736 690 479 2906 638 Wait 5760 | . 384 112 31 23 279 1 546 1 5 . 22 313 1 361 193 212 176 1 202 5 330 84 4 . 66 477 240 1334 38 6 120 69 124 Move 38997 | 44 850 488 670 2233 3433 60 2082 228 152 85 312 1952 63 1062 794 358 139 549 1457 98 2202 674 246 149 317 2652 1265 9696 657 651 316 2621 442 Hop 143 | . . . . . 26 . 18 . 4 . . . 1 3 14 . . 11 18 2 13 . . . 1 4 7 21 . . . . . Pick Up 244 | 3 7 3 4 27 14 . 11 . 1 . . 1 . 2 6 . 1 4 5 . 6 1 1 3 . 11 12 89 1 2 3 23 3 Fast Attach 219 | 7 3 3 1 . 17 . 9 . 4 . 1 11 . 3 3 6 5 2 6 . 19 1 . 5 1 26 5 62 3 3 1 8 4 Attach 154 | . 1 2 . 3 14 . 5 3 2 . . 1 . 2 2 . 1 2 2 . 15 . . . 1 8 8 41 1 1 2 14 23 Detach 65 | . 1 1 1 . 3 . 2 3 . . . 1 . . . . 1 . 2 . 9 . . . . 5 5 26 1 . 1 2 1 Swap 202 | . 22 13 1 3 11 . 11 . . . . 2 . 6 4 1 2 2 6 . 10 2 . 5 . 13 5 61 . 2 6 12 2 Drop 326 | . 7 4 5 21 28 . 13 . 2 . . 2 . 7 2 6 5 5 8 . 15 2 1 11 1 21 12 112 3 4 . 27 2 Fire 989 | 8 55 9 1 . 2 . 7 . . . . . . . 20 8 5 6 2 . 22 . . . 8 48 9 617 17 7 20 85 33 Melee 578 | . . . . . 69 . 67 2 12 . 2 54 . 20 24 1 5 18 38 . 56 5 . . 7 54 34 32 13 14 10 37 4 Ram . | . . . . . . . . . . . . . . . . . . . . . . . . . . . . . . . . . . Kick . | . . . . . . . . . . . . . . . . . . . . . . . . . . . . . . . . . . Crush . | . . . . . . . . . . . . . . . . . . . . . . . . . . . . . . . . . . Escape Stasis 193 | . . . . . 34 . 15 . . . . . . . . . . . . . . . . . . 19 . 122 2 . . 1 . Rewire 11 | . . . . . . . . . . . . . . . 4 . . . . . . . . . . . . . . . . 7 . Trap 31 | . 31 . . . . . . . . . . . . . . . . . . . . . . . . . . . . . . . . Miscellaneous 62 | . . . . . . . . . . . . . . . . . . . . . . . . . . 2 . 60 . . . . . Route ------- -11/Scrapyard -10/Materials (discovered 6 exits: [*Mat x3] / [*Min x2] / *Sub) -10/Subcaves (discovered 3 exits: *Mat x2 / *Rec) -8/Recycling (discovered 2 exits: *Fac / *Scr) -8/Scraptown (discovered 2 exits: *Fac x2) -6/Factory (discovered 6 exits: *Fac x4 / *Low x2) -6/Waste -6/Factory (discovered 6 exits: *Fac x4 / *Low x2) -6/Lower Caves -6/Lower Caves -6/Data Miner -5/Proximity Caves -5/Factory (discovered 7 exits: *Fac x3 / *Upp x2 / *Ext x2) -5/Waste -5/Factory (discovered 3 exits: *Upp / *Ext x2) -5/Extension (discovered 2 exits: *Fac / *Cet) -5/Cetus (discovered 2 exits: *Fac / *Arc) -5/Archives (discovered 2 exits: *Fac / *Hub) -5/Hub_04(d) (discovered 3 exits: *Fac x3) -4/Factory (discovered 7 exits: *Res x4 / Upp x2 / *Arm) -4/Waste -4/Factory (discovered 7 exits: *Res x4 / *Upp x2 / *Arm) -4/Upper Caves -4/Upper Caves (discovered 2 exits: Res / *Zhi) -4/Zhirov -3/Proximity Caves -3/Research (discovered 5 exits: *Res x3 / *Qua x2) -3/Quarantine (discovered 3 exits: *Res / *Sec / *Frg) -3/Protoforge -2/Research (discovered 5 exits: Acc x3 / *Tes x2) -2/Testing -1/Access (discovered 2 exits: Sur / *Com) -1/Command (discovered 3 exits: *Sur x2 / [*Ac0]) -1/Access_0 To Epsilon Eridani History --------- Turn | Location | Event 9 | -11/Scrapyard | Discovered new exit (range 14) 77 | -11/Scrapyard | Entered Materials 308 | -10/Materials | Discovered new exit (range 13) 325 | -10/Materials | Build established: Mutant 598 | -10/Materials | Discovered new exit (range 11) 731 | -10/Materials | Repaired Lgt. Cannon 906 | -10/Materials | Discovered new exit (range 8) 941 | -10/Materials | Learned 2 Mines zone layouts 971 | -10/Materials | Learned location of Storage (-8) 990 | -10/Materials | Learned location of 2 exits from Mines 1002 | -10/Materials | Learned Storage emergency access door positions 1004 | -10/Materials | Learned Storage stockpile data 1010 | -10/Materials | Learned location of 1 exit from Recycling 1156 | -10/Materials | Core integrity fell below 50% 1212 | -10/Materials | Discovered new exit (range 16) 1422 | -10/Materials | Discovered new exit (range 15) 1556 | -10/Materials | Discovered new exit (range 5) 1571 | -10/Materials | Entered Subcaves 1571 | -10/Subcaves | Accompanied by 1 ally 1572 | -10/Subcaves | Approached by a straggling Scientist 1572 | -10/Subcaves | Identified exit to Recycling 1576 | -10/Subcaves | Learned location of Zion (-7) 1576 | -10/Subcaves | Met a Zionite searching for "candidates" 1764 | -10/Subcaves | Identified exit to Materials 1805 | -10/Subcaves | A swath of the cavern ceiling suddenly collapsed 1931 | -10/Subcaves | Visited triangular shrine 1937 | -10/Subcaves | Found Prototype Device 1937 | -10/Subcaves | Identified V3-11A's Pendant 1942 | -10/Subcaves | Befriended Subdweller 2015 | -10/Subcaves | Learned Materials terminal intel 2020 | -10/Subcaves | Discovered exit to Materials (range 6) 2113 | -10/Subcaves | Found SUBCON Basin 2340 | -10/Subcaves | Entered Recycling 2340 | -8/Recycling | Accompanied by 1 ally 2341 | -8/Recycling | Identified exit to Scraptown 2553 | -8/Recycling | Discovered new exit (range 5) 3254 | -8/Recycling | Learned Storage non-interactive machine intel 3303 | -8/Recycling | Learned Storage security intel 3382 | -8/Recycling | Learned location of 1 exit from Recycling 3406 | -8/Recycling | Learned location of 2 exits from Factory 3439 | -8/Recycling | Learned location of 1 exit from Recycling 3482 | -8/Recycling | Learned location of 2 exits from Factory 3765 | -8/Recycling | Scanned before Scraplab entrance 3795 | -8/Recycling | Entered Scraplab 3824 | -8/Recycling | Entered Scraptown 3876 | -8/Scraptown | Heard Great Nut preacher, LISTEN AND RECITE! 4053 | -8/Scraptown | Scanned Subdweller tech in exchange for log data 4060 | -8/Scraptown | Learned location of Armory (-4) 4248 | -8/Scraptown | Delivered V3-11A's Pendant to T0-NE2 in exchange for information 4765 | -8/Scraptown | Visited UFD Registry 4765 | -8/Scraptown | Registered with UFD as "Beamlever" 4791 | -8/Scraptown | Visited TADAMA 4839 | -8/Scraptown | Visited Spacefarers 5008 | -8/Scraptown | Discovered new exit (range 11) 5048 | -8/Scraptown | Guru changed UFD alias to "Autosourcer" 5181 | -8/Scraptown | Visited The Evicted 5197 | -8/Scraptown | Visited Symbiants 5227 | -8/Scraptown | Visited IN-MT5's Study 5327 | -8/Scraptown | Visited Curators Association 5391 | -8/Scraptown | Visited LU-1G1's Boring Crew 5508 | -8/Scraptown | Visited Scrap Suit Storage 5554 | -8/Scraptown | Visited Science Guys 5793 | -8/Scraptown | Visited Infowarlord's Domain 5803 | -8/Scraptown | Found Exp. Signal Interpreter 5836 | -8/Scraptown | Visited Scrapoid Pod Storage 5846 | -8/Scraptown | Found Scrapoid Pod 5872 | -8/Scraptown | Visited Modified Component R&D 5948 | -8/Scraptown | Visited Abandonware Association 5970 | -8/Scraptown | Learned abandonware demo "REPAIR.EXE" 5970 | -8/Scraptown | Learned abandonware demo "KABOOM.EXE" 6020 | -8/Scraptown | Visited Botcube Research 6030 | -8/Scraptown | Found Botcube 6067 | -8/Scraptown | Visited Observation Area 6607 | -8/Scraptown | Found Scrap Suit 8067 | -8/Scraptown | Botcube activated 8087 | -8/Scraptown | Botcube completed mutation into legged form, armed with 2 guns. 8155 | -8/Scraptown | Discovered new exit (range 3) 8271 | -8/Scraptown | Met Optimus 8271 | -8/Scraptown | Accepted into 0bPrime 8375 | -8/Scraptown | Entered Factory 8375 | -6/Factory | Accompanied by 1 ally 8375 | -6/Factory | Evolved 8 slots: Propulsion x4, Utility x4 8376 | -6/Factory | Identified exit to Factory 8376 | -6/Factory | Identified exit to Lower Caves 8508 | -6/Factory | Loaded intel: 8 recycling unit locations 8626 | -6/Factory | Learned location of Protoforge (-3) 8757 | -6/Factory | Build established: Hacker-Sprinter 8763 | -6/Factory | Spotted B-75 Beast 8820 | -6/Factory | Learned location of Archives (-5) 8860 | -6/Factory | Learned 2 Extension zone layouts 8915 | -6/Factory | Fabricated Imp. Surge Thruster (x2) 8922 | -6/Factory | Learned location of 1 exit from Extension 8941 | -6/Factory | Learned location of 1 exit from Hub_04(d) 8971 | -6/Factory | Learned location of Proximity Caves (-3) 9075 | -6/Factory | First assault squad dispatched 9223 | -6/Factory | Found Botcube 9279 | -6/Factory | Botcube activated 9291 | -6/Factory | Botcube completed mutation into hovering form, armed with 2 guns. 9580 | -6/Factory | Learned Hub_04(d) security intel 9623 | -6/Factory | Learned Extension trap positions 9656 | -6/Factory | Learned Extension emergency access door positions 9661 | -6/Factory | Repaired Imp. Surge Thruster 9697 | -6/Factory | Repaired Imp. Surge Thruster 9710 | -6/Factory | Learned Hub_04(d) stockpile data 9752 | -6/Factory | Learned Extension security intel 9754 | -6/Factory | Manually triggered Chute Trap 9754 | -6/Factory | Sucked down chute 9754 | -6/Factory | Entered Waste 9759 | -6/Waste | Spotted C-40 Crusher 9759 | -6/Waste | Spotted C-40 Crusher 9763 | -6/Waste | Spotted C-40 Crusher 9765 | -6/Waste | Discovered new exit (range 16) 9765 | -6/Waste | Spotted C-40 Crusher 9765 | -6/Waste | Spotted C-40 Crusher 9766 | -6/Waste | Spotted C-40 Crusher 9769 | -6/Waste | EMP discharged 9769 | -6/Waste | System corruption reached 10% 9769 | -6/Waste | Entered Factory 9845 | -6/Factory | Discovered exit to Lower Caves (range 5) 9900 | -6/Factory | Fabricated Adv. System Restoration Module? 10106 | -6/Factory | Loaded intel: 8 recycling unit locations 10144 | -6/Factory | Learned location of Warlord (-5) 10202 | -6/Factory | Learned location of Proximity Caves (-6) 10203 | -6/Factory | Learned Hub_04(d) emergency access door positions 10204 | -6/Factory | Loaded intel: 6 fabricator locations 10205 | -6/Factory | Learned location of 1 exit from Hub_04(d) 10215 | -6/Factory | Learned location of 1 exit from Lower Caves 10323 | -6/Factory | Discovered exit to Factory (range 6) 10572 | -6/Factory | Fabricated Adv. Hacking Suite (x1) 10693 | -6/Factory | Repaired Imp. Surge Thruster 10759 | -6/Factory | Repaired VTOL Module 10816 | -6/Factory | Discovered exit to Factory (range 7) 10823 | -6/Factory | Central database locked down 10933 | -6/Factory | Repaired Imp. Surge Thruster 10952 | -6/Factory | Discovered exit to Factory (range 14) 11037 | -6/Factory | Repaired Nuclear Pulse Thruster 11065 | -6/Factory | Repaired Imp. Surge Thruster? 11082 | -6/Factory | Entered Lower Caves 11083 | -6/Lower Caves | Identified exit to Lower Caves 11091 | -6/Lower Caves | Learned 4 Factory zone layouts 11157 | -6/Lower Caves | Entered another Lower Caves area 11179 | -6/Lower Caves | Attracted the attention of an 0b10 base 11208 | -6/Lower Caves | Core integrity fell below 50% 11243 | -6/Lower Caves | Lost 5 parts (1p2n2u) 11251 | -6/Lower Caves | Discovered new exit (range 10) 11252 | -6/Lower Caves | Identified exit to Data Miner 11253 | -6/Lower Caves | Entered Data Miner 11253 | -6/Data Miner | Discovered new exit (range 6) 11255 | -6/Data Miner | Identified exit to Proximity Caves 11257 | -6/Data Miner | Met Data Miner 11262 | -6/Data Miner | Learned location of Section 7 (-3) 11262 | -6/Data Miner | Acquired the access code to Warlord's prototype stash 11265 | -6/Data Miner | Received God Mode back door access code from Data Miner 11271 | -6/Data Miner | Entered Proximity Caves 11297 | -5/Proximity Caves | Escorted by Enhanced Grunt 11343 | -5/Proximity Caves | Spotter reported a threat 11343 | -5/Proximity Caves | Spotter reported a threat 11362 | -5/Proximity Caves | Discovered exit to Factory (range 15) 11366 | -5/Proximity Caves | Entered Factory 11366 | -5/Factory | Evolved 2 slots: Power x1, Propulsion x1 11433 | -5/Factory | Discovered new exit (range 4) 11433 | -5/Factory | Identified exit to Upper Caves 11454 | -5/Factory | Fabricated Imp. Surge Thruster (x2) 11480 | -5/Factory | Loaded intel: 8 recycling unit locations 11547 | -5/Factory | Noticed a derelict Sapper rigging charges 11711 | -5/Factory | Fabricated Adv. Hacking Suite? 11773 | -5/Factory | Identified exit to Extension 11862 | -5/Factory | Central database locked down 11901 | -5/Factory | Repaired Lgt. Fission Core 11927 | -5/Factory | Identified exit to Factory 11928 | -5/Factory | Repaired Biomechanical Wings 12037 | -5/Factory | Learned Research scanalyzer intel 12078 | -5/Factory | Learned 8 Quarantine zone layouts 12159 | -5/Factory | Fabricated Imp. Surge Thruster? 12204 | -5/Factory | Learned Extension stockpile data 12216 | -5/Factory | Manually triggered Chute Trap 12216 | -5/Factory | Sucked down chute 12216 | -5/Factory | Entered Waste 12220 | -5/Waste | Spotted C-40 Crusher 12221 | -5/Waste | Spotted C-40 Crusher 12221 | -5/Waste | Spotted C-40 Crusher 12224 | -5/Waste | Spotted C-40 Crusher 12226 | -5/Waste | Spotted C-40 Crusher 12228 | -5/Waste | Discovered new exit (range 16) 12228 | -5/Waste | Spotted C-40 Crusher 12231 | -5/Waste | EMP discharged 12231 | -5/Waste | System corruption reached 10% 12231 | -5/Waste | Identified exit to Factory 12231 | -5/Waste | Entered Factory 12442 | -5/Factory | Loaded intel: 8 recycling unit locations 12497 | -5/Factory | Discovered exit to Extension (range 15) 12521 | -5/Factory | Discovered exit to Upper Caves (range 7) 12524 | -5/Factory | Spotted B-75 Beast 12597 | -5/Factory | Tech Extrapolator generated special schematic: Deep Structural Scanner 12852 | -5/Factory | Discovered exit to Extension (range 12) 12868 | -5/Factory | Entered Extension 12868 | -5/Extension | Accompanied by 1 ally 12871 | -5/Extension | Loaded intel: 17 trap records 12886 | -5/Extension | Rescued a captive Derelict 12908 | -5/Extension | Identified exit to Cetus 12914 | -5/Extension | Rescued a captive Derelict 12966 | -5/Extension | Rescued a captive Derelict 12967 | -5/Extension | Rescued a captive Derelict 13026 | -5/Extension | Lost 3 allies 13029 | -5/Extension | Tech Extrapolator generated special schematic: Energy Deflector 13051 | -5/Extension | Rescued A7 13139 | -5/Extension | Crushed by falling debris 13170 | -5/Extension | Lost 3 parts (1n2u) 13172 | -5/Extension | Loaded intel: 2 recycling unit locations 13218 | -5/Extension | Repaired Field Propulsion Drive 13225 | -5/Extension | Rescued a captive Derelict 13226 | -5/Extension | Rescued a captive Derelict 13266 | -5/Extension | Learned Factory emergency access door positions 13334 | -5/Extension | Learned 2 Extension zone layouts 13361 | -5/Extension | Entered Cetus 13361 | -5/Cetus | Accompanied by 7 allies (A7) 13366 | -5/Cetus | Acquired a Cetus Manufacturing Module code from A7 13371 | -5/Cetus | Spotted Cetus Guard 13371 | -5/Cetus | Spotted Cetus Guard 13373 | -5/Cetus | Allies destroyed Cetus Guard 13374 | -5/Cetus | Spotted Cetus Guard 13375 | -5/Cetus | Spotted Cetus Guard 13381 | -5/Cetus | Allies destroyed Cetus Guard 13384 | -5/Cetus | Allies destroyed Cetus Guard 13398 | -5/Cetus | Allies destroyed Cetus Guard 13412 | -5/Cetus | Started Cetus Manufacturing Module 13426 | -5/Cetus | Escorted A7 to Cetus Mainframe 13428 | -5/Cetus | Lost 3 allies 13437 | -5/Cetus | Manufactured an Enhanced Grunt 13462 | -5/Cetus | Manufactured an Enhanced Grunt 13487 | -5/Cetus | Manufactured an Enhanced Grunt 13512 | -5/Cetus | Manufactured an Enhanced Grunt 13537 | -5/Cetus | Manufactured an Enhanced Grunt 13546 | -5/Cetus | Discovered new exit (range 15) 13571 | -5/Cetus | Spotted Cetus Guard 13571 | -5/Cetus | Spotted Cetus Guard 13590 | -5/Cetus | Spotted Cetus Guard 13590 | -5/Cetus | Spotted Cetus Guard 13594 | -5/Cetus | Allies destroyed Cetus Guard 13602 | -5/Cetus | Allies destroyed Cetus Guard 13604 | -5/Cetus | Allies destroyed Cetus Guard 13608 | -5/Cetus | Allies destroyed Cetus Guard 13611 | -5/Cetus | Discovered exit to Factory (range 15) 13613 | -5/Cetus | Met Revision 17 13658 | -5/Cetus | Identified exit to Archives 13674 | -5/Cetus | Entered Archives 13674 | -5/Archives | Accompanied by 6 allies (A7) 13679 | -5/Archives | Received a hacking code to weaken MAIN.C 13693 | -5/Archives | Found Prototype Device 13693 | -5/Archives | Identified Exp. Thermal Shield 13734 | -5/Archives | Discovered exit to Factory (range 15) 13972 | -5/Archives | Discovered new exit (range 16) 14071 | -5/Archives | Identified exit to Hub_04(d) 14081 | -5/Archives | Entered Hub_04(d) 14081 | -5/Hub_04(d) | Accompanied by 4 allies 14171 | -5/Hub_04(d) | Discovered exit to Factory (range 13) 14207 | -5/Hub_04(d) | Incoming investigation squad redirected 14207 | -5/Hub_04(d) | Network Hub disabled 14215 | -5/Hub_04(d) | Network Hub disabled 14222 | -5/Hub_04(d) | Incoming assault squad redirected 14225 | -5/Hub_04(d) | Incoming assault squad redirected 14251 | -5/Hub_04(d) | Network Hub disabled 14257 | -5/Hub_04(d) | Spotted Lightning 14257 | -5/Hub_04(d) | Spotted Lightning 14257 | -5/Hub_04(d) | Network Hub disabled 14260 | -5/Hub_04(d) | Spotted Lightning 14260 | -5/Hub_04(d) | Spotted Lightning 14263 | -5/Hub_04(d) | Entered Factory 14263 | -4/Factory | Evolved 2 slots: Utility x2 14288 | -4/Factory | Lost 5 parts (1p4n) 14318 | -4/Factory | Repaired Power Sword 14443 | -4/Factory | Found Exp. Signal Interpreter 14466 | -4/Factory | Identified exit to Upper Caves 14466 | -4/Factory | Identified exit to Armory 14484 | -4/Factory | Discovered new exit (range 15) 14555 | -4/Factory | Fabricated Deep Structural Scanner (x1) 14647 | -4/Factory | Loaded intel: 8 recycling unit locations 14657 | -4/Factory | Identified exit to Research 14661 | -4/Factory | Tech Extrapolator generated special schematic: Machine Rigger 14704 | -4/Factory | Central database locked down 14709 | -4/Factory | Learned location of 1 exit from Quarantine 14783 | -4/Factory | Learned location of 3 exits from Factory 14802 | -4/Factory | Spotted B-86 Titan 14820 | -4/Factory | Loaded intel: 114 trap records 14826 | -4/Factory | Learned Research scanalyzer intel 14834 | -4/Factory | Learned Testing stockpile data 14851 | -4/Factory | Learned Testing security intel 14861 | -4/Factory | Build established: Hacker-Scout 14880 | -4/Factory | Learned location of Testing (-2) 14910 | -4/Factory | Manually triggered Chute Trap 14910 | -4/Factory | Sucked down chute 14910 | -4/Factory | Entered Waste 14913 | -4/Waste | Spotted C-40 Crusher 14915 | -4/Waste | Spotted C-40 Crusher 14923 | -4/Waste | Spotted C-40 Crusher 14924 | -4/Waste | Spotted C-40 Crusher 14924 | -4/Waste | Discovered new exit (range 10) 14924 | -4/Waste | Spotted C-40 Crusher 14925 | -4/Waste | EMP discharged 14932 | -4/Waste | Identified exit to Factory 14939 | -4/Waste | Entered Factory 14963 | -4/Factory | Tech Extrapolator generated special schematic: Wartreads 14966 | -4/Factory | Loaded intel: 8 recycling unit locations 15008 | -4/Factory | Repaired Lgt. Antimatter Reactor 15053 | -4/Factory | Repaired Cld. Nuclear Pulse Thruster 15085 | -4/Factory | Fabricated Adv. Hacking Suite (x1) 15160 | -4/Factory | Fabricated Q-thruster? 15480 | -4/Factory | Spotted B-86 Titan 15773 | -4/Factory | Central database locked down 15810 | -4/Factory | Learned Armory terminal intel 15822 | -4/Factory | Repaired Cld. Nuclear Pulse Thruster 15834 | -4/Factory | Spotted B-86 Titan 15869 | -4/Factory | Learned 2 Upper Caves zone layouts 15871 | -4/Factory | Learned Quarantine non-interactive machine intel 15872 | -4/Factory | Learned Quarantine security intel 15906 | -4/Factory | Lost 3 parts (2n1u) 15908 | -4/Factory | Found Quantum Capacitor 16042 | -4/Factory | Fabricated Adv. Hacking Suite (x1) 16060 | -4/Factory | Incoming investigation squad redirected 16077 | -4/Factory | Entered Upper Caves 16155 | -4/Upper Caves | Encountered a Warlord checkpoint 16185 | -4/Upper Caves | Spotted B-86 Titan 16220 | -4/Upper Caves | Learned location of 1 exit from Proximity Caves 16339 | -4/Upper Caves | Discovered new exit (range 7) 16342 | -4/Upper Caves | Identified exit to Upper Caves 16342 | -4/Upper Caves | Entered another Upper Caves area 16406 | -4/Upper Caves | Discovered new exit (range 7) 16407 | -4/Upper Caves | Identified exit to Zhirov 16407 | -4/Upper Caves | Entered Zhirov 16407 | -4/Zhirov | Discovered new exit (range 3) 16408 | -4/Zhirov | Identified exit to Proximity Caves 16412 | -4/Zhirov | Met Zhirov 16419 | -4/Zhirov | Learned location of Quarantine (-3) 16419 | -4/Zhirov | Learned location of Command (-1) 16420 | -4/Zhirov | Zhirov requested help retrieving the SGEMP Prototype 16424 | -4/Zhirov | Found Alien Artifact 16424 | -4/Zhirov | Identified Integrated Reactor 16424 | -4/Zhirov | Installed Integrated Reactor, increased core energy generation (+10) 16430 | -4/Zhirov | Found Alien Artifact 16463 | -4/Zhirov | Entered Proximity Caves 16466 | -3/Proximity Caves | Spotter reported a threat 16519 | -3/Proximity Caves | Spotter reported a threat 16633 | -3/Proximity Caves | Entered Research 16633 | -3/Research | Evolved 2 slots: Utility x2 16634 | -3/Research | Loaded intel: 6 scanalyzer locations 16683 | -3/Research | Discovered new exit (range 5) 16685 | -3/Research | Spotted B-86 Titan 16705 | -3/Research | Identified exit to Quarantine 16833 | -3/Research | Revision forces began assault on 0b10 16844 | -3/Research | Spotted B-86 Titan 16949 | -3/Research | Lost 4 parts (1p1n2u) 16950 | -3/Research | Build established: Hacker-Ninja 16960 | -3/Research | Met up with Revision 17++ 17037 | -3/Research | Lost 3 allies 17251 | -3/Research | Loaded intel: 57 trap records 17259 | -3/Research | Fabricated Multitool (x1) 17277 | -3/Research | Identified exit to Research 17295 | -3/Research | Learned location of 1 exit from Research 17303 | -3/Research | Loaded intel: 4 fabricator locations 17333 | -3/Research | Research terminal network offline 17403 | -3/Research | Loaded intel: 5 recycling unit locations 17411 | -3/Research | Repaired Adv. Remote Datajack? 17510 | -3/Research | Repaired Lgt. Angular Momentum Engine 17540 | -3/Research | Repaired Cld. Nuclear Pulse Thruster 17629 | -3/Research | Fabricated Mak. Power Source (x2) 17703 | -3/Research | Fabricated Exp. Propulsion Shielding (x1) 17859 | -3/Research | Crushed by falling debris 17989 | -3/Research | Entered Quarantine 17990 | -3/Quarantine | Identified exit to Protoforge 17992 | -3/Quarantine | Loaded intel: 57 non-interactive machine locations 18088 | -3/Quarantine | Identified Transdimensional Reconstructor 18095 | -3/Quarantine | Found Alien Slashing Weapon 18106 | -3/Quarantine | Found Alien Artifact 18106 | -3/Quarantine | Identified Phase Redirector 18147 | -3/Quarantine | Found Alien Reactor 18160 | -3/Quarantine | Learned location of 1 exit from Testing 18175 | -3/Quarantine | Found Alien Artifact 18193 | -3/Quarantine | Found Alien Artifact 18220 | -3/Quarantine | Learned Section 7 terminal intel 18258 | -3/Quarantine | Found Alien Artifact 18259 | -3/Quarantine | Identified Hpw. Transdimensional Reconstructor 18274 | -3/Quarantine | Identified Dimensional Node Initializer 18274 | -3/Quarantine | Initialized slip node 18275 | -3/Quarantine | Found Dimensional Node Initializer 18294 | -3/Quarantine | Identified Subatomic Replicator 18294 | -3/Quarantine | Used Subatomic Replicator to create Alien Artifact 18301 | -3/Quarantine | Found Hpw. Transdimensional Reconstructor 18303 | -3/Quarantine | Discovered exit to Research (range 13) 18331 | -3/Quarantine | Learned location of 2 exits from Research 18408 | -3/Quarantine | Identified exit to Section 7 18418 | -3/Quarantine | Found Alien Energy Cannon 18430 | -3/Quarantine | Identified Core Cannon 18432 | -3/Quarantine | Identified Sigix Broadsword 18495 | -3/Quarantine | Repaired Mak. Power Source 18608 | -3/Quarantine | Spotted Fortress 18623 | -3/Quarantine | Entered Protoforge 18629 | -3/Protoforge | Identified Supercharged TR 18656 | -3/Protoforge | Discovered exit to Research (range 18) 18686 | -3/Protoforge | Spotted Hotshot 18858 | -3/Protoforge | Superfortress began startup sequence 18864 | -3/Protoforge | Spotted EXE-6 18864 | -3/Protoforge | Spotted EXE-6 18872 | -3/Protoforge | UFD initiated attack on Protoforge 18872 | -3/Protoforge | Loaded intel: 3 recycling unit locations 18889 | -3/Protoforge | Scraphulk reinforcements arrived 18890 | -3/Protoforge | Scraphulk reinforcements arrived 18901 | -3/Protoforge | Found Dimensional Node Initializer 18903 | -3/Protoforge | Initialized slip node 18918 | -3/Protoforge | Warped through subspace to slip node 18919 | -3/Protoforge | Optimus attacked Superfortress 18919 | -3/Protoforge | Optimus greeted in Protoforge 18919 | -3/Protoforge | Found Prototype Device 18919 | -3/Protoforge | Identified Exp. Kinecellerator 18922 | -3/Protoforge | Spotted Executioner 18927 | -3/Protoforge | Spotted Immortal 18931 | -3/Protoforge | Spotted Striker 18931 | -3/Protoforge | Spotted Immortal 18945 | -3/Protoforge | Found Prototype Device 18945 | -3/Protoforge | Identified Exp. Force Field 18946 | -3/Protoforge | Forge Plexus network access discovered 18950 | -3/Protoforge | Found Cep. Matter Streamer 18959 | -3/Protoforge | Found Cep. Zero-point Core 18963 | -3/Protoforge | Found Cep. Zero-point Core 18965 | -3/Protoforge | Spotted Decapitator 18966 | -3/Protoforge | Spotted Decapitator 18988 | -3/Protoforge | Found Cep. Zero-point Core 18998 | -3/Protoforge | Lost 21 allies 19003 | -3/Protoforge | Met 7R-MNS 19003 | -3/Protoforge | Found Cep. Antimissile System 19045 | -3/Protoforge | Additional patrols dispatched to research labs 19051 | -3/Protoforge | Crushed by falling debris 19054 | -3/Protoforge | Spotted Decapitator 19054 | -3/Protoforge | Crushed by falling debris 19055 | -3/Protoforge | System corruption reached 10% 19059 | -3/Protoforge | Spotted Decapitator 19071 | -3/Protoforge | Spotted Executioner 19071 | -3/Protoforge | Warped through subspace 19085 | -3/Protoforge | Lost 7 parts (3n4u) 19120 | -3/Protoforge | Spotted Decapitator 19160 | -3/Protoforge | Spotted Executioner 19164 | -3/Protoforge | Allies destroyed Executioner 19166 | -3/Protoforge | Allies destroyed Executioner 19170 | -3/Protoforge | Spotted Decapitator 19189 | -3/Protoforge | Allies destroyed Decapitator 19221 | -3/Protoforge | Core integrity fell below 50% 19272 | -3/Protoforge | Found Faulty Cep. Fieldthrust Drive 19278 | -3/Protoforge | Spotted V364-m 19278 | -3/Protoforge | Spotted V132-g 19278 | -3/Protoforge | Spotted V375-k 19291 | -3/Protoforge | Found Cep. Fieldthrust Drive 19320 | -3/Protoforge | Found Crosscalibrator 19323 | -3/Protoforge | Spotted Immortal 19323 | -3/Protoforge | Spotted Immortal 19325 | -3/Protoforge | Spotted Decapitator 19325 | -3/Protoforge | Spotted Decapitator 19325 | -3/Protoforge | Spotted Decapitator 19325 | -3/Protoforge | Spotted Decapitator 19361 | -3/Protoforge | Found Faulty Cep. Deflector Sword 19362 | -3/Protoforge | Found Faulty Cep. Deflector Sword 19363 | -3/Protoforge | Found Cep. Miniperforator 19366 | -3/Protoforge | Found Faulty Cep. Miniperforator 19372 | -3/Protoforge | Spotted V819-c 19416 | -3/Protoforge | Found Cep. Chromion Battery 19793 | -3/Protoforge | Build established: Scavenger-Ninja 19859 | -3/Protoforge | Spotted Striker 19862 | -3/Protoforge | Found Exp. Core Analyzer 19868 | -3/Protoforge | Found Exp. Core Analyzer 19885 | -3/Protoforge | Spotted Striker 19919 | -3/Protoforge | Spotted Executioner 19922 | -3/Protoforge | Destroyed Executioner 19969 | -3/Protoforge | Spotted Executioner 19970 | -3/Protoforge | Destroyed Executioner 19996 | -3/Protoforge | Spotted Executioner 20000 | -3/Protoforge | Destroyed Executioner 20017 | -3/Protoforge | Spotted Executioner 20019 | -3/Protoforge | Destroyed Executioner 20033 | -3/Protoforge | Spotted Executioner 20049 | -3/Protoforge | Destroyed 10 combat bots 20058 | -3/Protoforge | Destroyed Executioner 20096 | -3/Protoforge | Spotted V247-t 20100 | -3/Protoforge | Found Cep. Weapon Articulator 20101 | -3/Protoforge | Found Cep. Hypertargeting System 20130 | -3/Protoforge | Spotted Decapitator 20130 | -3/Protoforge | Spotted Decapitator 20130 | -3/Protoforge | Spotted Decapitator 20145 | -3/Protoforge | Spotted Immortal 20145 | -3/Protoforge | Spotted Immortal 20149 | -3/Protoforge | Spotted V864-p 20149 | -3/Protoforge | Spotted V727-b 20149 | -3/Protoforge | Spotted V341-s 20209 | -3/Protoforge | Destroyed Immortal 20212 | -3/Protoforge | Found Prototype Device 20212 | -3/Protoforge | Identified Exp. Cloaking Device 20233 | -3/Protoforge | Found Exp. Active Sensor Suite 20236 | -3/Protoforge | Found Cep. Network Penetrator 20262 | -3/Protoforge | Found Cep. Reaction Jets 20268 | -3/Protoforge | Found Cep. Phase Shift Module 20270 | -3/Protoforge | Found Cep. Core Shell 20285 | -3/Protoforge | Spotted AP7-3 20336 | -3/Protoforge | Found Cep. Nanofilaments [Conductive] 20336 | -3/Protoforge | Installed Cep. Nanofilaments [Conductive], 2 resistances modified: TH -15%, EM +25% 20343 | -3/Protoforge | Found Transdimensional Reconstructor 20388 | -3/Protoforge | Destroyed Immortal 20441 | -3/Protoforge | Spotted Executioner 20441 | -3/Protoforge | Destroyed Executioner 20472 | -3/Protoforge | Destroyed 10 combat bots 20520 | -3/Protoforge | Destroyed Immortal 20528 | -3/Protoforge | Found Cep. XC Strikerail 20529 | -3/Protoforge | Found Faulty Cep. XC Strikerail 20583 | -3/Protoforge | Spotted V708-j 20584 | -3/Protoforge | Found Prototype Hover Unit 20584 | -3/Protoforge | Identified Cep. Gyrokinetic System 20587 | -3/Protoforge | Found Cep. Gyrokinetic System 20611 | -3/Protoforge | Found Faulty Cep. Gyrokinetic System 20641 | -3/Protoforge | Spotted Decapitator 20641 | -3/Protoforge | Spotted Decapitator 20641 | -3/Protoforge | Spotted Decapitator 20652 | -3/Protoforge | Found Cep. Antigrav Storage Unit 20655 | -3/Protoforge | Found Cep. Matter Streamer 20657 | -3/Protoforge | Found Cep. NT7 Matterbank 20666 | -3/Protoforge | Found Cep. NT7 Matterbank 20668 | -3/Protoforge | Found Cep. NT7 Matterbank 20671 | -3/Protoforge | Found Cep. NT7 Matterbank 20827 | -3/Protoforge | Spotted AP7-3 21045 | -3/Protoforge | Found Prototype Device 21045 | -3/Protoforge | Identified Exp. ECM Suite 21053 | -3/Protoforge | Spotted Executioner 21055 | -3/Protoforge | Destroyed Executioner 21056 | -3/Protoforge | Lost 4 allies 21057 | -3/Protoforge | Spotted Striker 21066 | -3/Protoforge | Destroyed Striker 21073 | -3/Protoforge | Spotted Striker 21075 | -3/Protoforge | Destroyed Executioner 21093 | -3/Protoforge | Found Exp. Core Analyzer 21104 | -3/Protoforge | Destroyed 7 combat bots 21172 | -3/Protoforge | Found Cep. Cloak Mesh 21173 | -3/Protoforge | Found Faulty Cep. Cloak Mesh 21178 | -3/Protoforge | Found Cep. Cloak Mesh 21180 | -3/Protoforge | Found Cep. Thermoelectric Network 21206 | -3/Protoforge | Found Faulty Cep. Reaction Jets 21208 | -3/Protoforge | Found Cep. Core Shell 21405 | -3/Protoforge | Spotted Striker 21406 | -3/Protoforge | Destroyed Striker 21456 | -3/Protoforge | Spotted Executioner 21456 | -3/Protoforge | Spotted Executioner 21473 | -3/Protoforge | Destroyed Executioner 21474 | -3/Protoforge | Spotted Executioner 21478 | -3/Protoforge | Destroyed Executioner 21498 | -3/Protoforge | Destroyed Executioner 21523 | -3/Protoforge | Destroyed 13 combat bots 21591 | -3/Protoforge | Spotted Hotshot 21591 | -3/Protoforge | Spotted Hotshot 21591 | -3/Protoforge | Destroyed Hotshot 21597 | -3/Protoforge | Destroyed Hotshot 21632 | -3/Protoforge | Learned Testing trap positions 21663 | -3/Protoforge | Repaired Exp. Propulsion Shielding 21675 | -3/Protoforge | Learned Research terminal intel 21708 | -3/Protoforge | Learned Research terminal intel 21722 | -3/Protoforge | Build established: Hacker-Ninja 21733 | -3/Protoforge | Learned 12 Research zone layouts 21748 | -3/Protoforge | Learned 12 Access zone layouts 21750 | -3/Protoforge | Spotted V842-g 21751 | -3/Protoforge | Found Faulty Cep. Recoil Nullifier 21752 | -3/Protoforge | Spotted V645-e 21752 | -3/Protoforge | Found Prototype Device 21754 | -3/Protoforge | Found Faulty Cep. Recoil Nullifier 21848 | -3/Protoforge | Fabricated Ovr. Railgun (x1) 21885 | -3/Protoforge | Spotted Striker 21886 | -3/Protoforge | Spotted Striker 21886 | -3/Protoforge | Spotted Executioner 21930 | -3/Protoforge | Spotted Striker 21930 | -3/Protoforge | Spotted Striker 21935 | -3/Protoforge | Spotted Striker 21936 | -3/Protoforge | Spotted Striker 21937 | -3/Protoforge | Destroyed Striker 21939 | -3/Protoforge | Destroyed Striker 21962 | -3/Protoforge | Spotted Executioner 21963 | -3/Protoforge | Destroyed Executioner 21967 | -3/Protoforge | Spotted Executioner 21975 | -3/Protoforge | Destroyed Executioner 22006 | -3/Protoforge | Destroyed 17 combat bots 22007 | -3/Protoforge | Spotted Striker 22011 | -3/Protoforge | Spotted Executioner 22011 | -3/Protoforge | Destroyed Executioner 22027 | -3/Protoforge | Spotted Striker 22029 | -3/Protoforge | Spotted Striker 22066 | -3/Protoforge | Destroyed Striker 22087 | -3/Protoforge | UFD reported confirmed Drillbomb installation 22088 | -3/Protoforge | Lost 3 allies 22099 | -3/Protoforge | Destroyed 7 combat bots 22110 | -3/Protoforge | Spotted Executioner 22112 | -3/Protoforge | Destroyed Executioner 22115 | -3/Protoforge | Spotted Executioner 22119 | -3/Protoforge | Destroyed Executioner 22149 | -3/Protoforge | Spotted Hotshot 22160 | -3/Protoforge | Spotted Hotshot 22168 | -3/Protoforge | UFD reported confirmed Drillbomb installation 22171 | -3/Protoforge | Destroyed Hotshot 22176 | -3/Protoforge | Destroyed Hotshot 22205 | -3/Protoforge | Spotted Striker 22205 | -3/Protoforge | Spotted Striker 22287 | -3/Protoforge | Spotted Executioner 22308 | -3/Protoforge | Lost 5 allies 22315 | -3/Protoforge | Spotted Executioner 22317 | -3/Protoforge | Destroyed Executioner 22321 | -3/Protoforge | Destroyed Executioner 22334 | -3/Protoforge | Spotted Executioner 22343 | -3/Protoforge | Destroyed Executioner 22355 | -3/Protoforge | UFD reported confirmed Drillbomb installation 22400 | -3/Protoforge | Fabricated Exp. Weapon Shielding (x1) 22445 | -3/Protoforge | Fabricated Adv. Transmission Jammer (x2) 22457 | -3/Protoforge | Fabricated Exp. Weapon Shielding (x1) 22479 | -3/Protoforge | Spotted Executioner 22487 | -3/Protoforge | Spotted Executioner 22490 | -3/Protoforge | Destroyed Executioner 22498 | -3/Protoforge | Spotted Striker 22498 | -3/Protoforge | Spotted Executioner 22499 | -3/Protoforge | Spotted Striker 22500 | -3/Protoforge | Destroyed Executioner 22515 | -3/Protoforge | Destroyed Striker 22536 | -3/Protoforge | Found Scrap Suit 22541 | -3/Protoforge | Spotted Striker 22542 | -3/Protoforge | Spotted Striker 22549 | -3/Protoforge | Core integrity fell below 20% 22556 | -3/Protoforge | Lost 3 allies 22564 | -3/Protoforge | Spotted Executioner 22568 | -3/Protoforge | Destroyed Executioner 22576 | -3/Protoforge | Spotted Executioner 22578 | -3/Protoforge | Destroyed Executioner 22589 | -3/Protoforge | Spotted Executioner 22589 | -3/Protoforge | Destroyed Executioner 22617 | -3/Protoforge | Spotted Executioner 22619 | -3/Protoforge | Destroyed Executioner 22620 | -3/Protoforge | Spotted Executioner 22625 | -3/Protoforge | Destroyed Executioner 22638 | -3/Protoforge | Spotted Striker 22639 | -3/Protoforge | Spotted Striker 22642 | -3/Protoforge | Destroyed Striker 22646 | -3/Protoforge | Destroyed Striker 22652 | -3/Protoforge | Spotted Executioner 22656 | -3/Protoforge | Spotted Striker 22656 | -3/Protoforge | Destroyed Executioner 22660 | -3/Protoforge | Spotted Striker 22667 | -3/Protoforge | Destroyed Striker 22669 | -3/Protoforge | Destroyed Striker 22672 | -3/Protoforge | Spotted Striker 22699 | -3/Protoforge | Lost 12 allies 22719 | -3/Protoforge | Destroyed 41 combat bots 22748 | -3/Protoforge | Spotted Striker 22749 | -3/Protoforge | Spotted Striker 22793 | -3/Protoforge | UFD reported confirmed Drillbomb installation 22799 | -3/Protoforge | Destroyed 03F60-K 22803 | -3/Protoforge | Spotted Striker 22807 | -3/Protoforge | Spotted Executioner 22812 | -3/Protoforge | Destroyed Striker 22818 | -3/Protoforge | Destroyed Executioner 22846 | -3/Protoforge | Lost 3 allies 22871 | -3/Protoforge | Spotted Executioner 22891 | -3/Protoforge | Spotted Executioner 22893 | -3/Protoforge | Destroyed Executioner 22895 | -3/Protoforge | Spotted Executioner 22896 | -3/Protoforge | Destroyed Striker 22921 | -3/Protoforge | Destroyed 8 combat bots 22933 | -3/Protoforge | Spotted Executioner 22935 | -3/Protoforge | Spotted Executioner 22939 | -3/Protoforge | Destroyed Executioner 22939 | -3/Protoforge | Spotted Striker 22941 | -3/Protoforge | Spotted Striker 22941 | -3/Protoforge | Destroyed Executioner 22945 | -3/Protoforge | Destroyed Striker 22960 | -3/Protoforge | Found UFD Drillbomb 22968 | -3/Protoforge | Lost 4 allies 22972 | -3/Protoforge | Installed UFD Drillbomb at designated target 22972 | -3/Protoforge | UFD reported confirmed Drillbomb installation 22972 | -3/Protoforge | Spotted Striker 22975 | -3/Protoforge | Destroyed Striker 22976 | -3/Protoforge | Spotted Striker 22979 | -3/Protoforge | Destroyed Striker 22979 | -3/Protoforge | Spotted Striker 22985 | -3/Protoforge | Destroyed Striker 22987 | -3/Protoforge | Spotted Executioner 22987 | -3/Protoforge | Destroyed Executioner 23021 | -3/Protoforge | Lost 6 allies 23022 | -3/Protoforge | Found UFD Drillbomb 23032 | -3/Protoforge | Destroyed 12 combat bots 23046 | -3/Protoforge | Installed UFD Drillbomb at designated target 23046 | -3/Protoforge | UFD reported confirmed Drillbomb installation 23060 | -3/Protoforge | Found UFD Drillbomb 23096 | -3/Protoforge | Installed UFD Drillbomb at designated target 23096 | -3/Protoforge | UFD reported confirmed Drillbomb installation 23206 | -3/Protoforge | Repaired Ovr. Railgun 23226 | -3/Protoforge | Identified Matter Drive 23236 | -3/Protoforge | Spotted Executioner 23238 | -3/Protoforge | Destroyed Executioner 23242 | -3/Protoforge | Spotted Executioner 23245 | -3/Protoforge | Destroyed Executioner 23276 | -3/Protoforge | Spotted Executioner 23276 | -3/Protoforge | Destroyed Executioner 23278 | -3/Protoforge | Spotted Striker 23299 | -3/Protoforge | Destroyed Striker 23355 | -3/Protoforge | Destroyed Decapitator 23371 | -3/Protoforge | Destroyed Decapitator 23371 | -3/Protoforge | Destroyed Decapitator 23410 | -3/Protoforge | Destroyed V008-h 23431 | -3/Protoforge | Destroyed 7 combat bots 23437 | -3/Protoforge | Found Faulty Cep. Zero-point Core 23488 | -3/Protoforge | Spotted Executioner 23488 | -3/Protoforge | Destroyed Executioner 23503 | -3/Protoforge | Spotted Striker 23575 | -3/Protoforge | Found Scrap Suit 23588 | -3/Protoforge | Spotted Executioner 23588 | -3/Protoforge | Spotted Executioner 23590 | -3/Protoforge | Destroyed Executioner 23592 | -3/Protoforge | Destroyed Executioner 23593 | -3/Protoforge | Spotted Executioner 23594 | -3/Protoforge | Destroyed Executioner 23596 | -3/Protoforge | Spotted Executioner 23630 | -3/Protoforge | Lost 3 parts (1n1u1w) 23666 | -3/Protoforge | Spotted Striker 23677 | -3/Protoforge | Spotted Striker 23704 | -3/Protoforge | Destroyed Striker 23706 | -3/Protoforge | Destroyed Striker 23785 | -3/Protoforge | Found Cep. Combat Aerolev Unit 23861 | -3/Protoforge | Spotted Striker 23861 | -3/Protoforge | Spotted Striker 23864 | -3/Protoforge | Destroyed Striker 23866 | -3/Protoforge | Destroyed Striker 23941 | -3/Protoforge | Found UFD Drillbomb 23958 | -3/Protoforge | Lost 3 allies 23979 | -3/Protoforge | Installed UFD Drillbomb at designated target 23979 | -3/Protoforge | UFD reported confirmed Drillbomb installation 24002 | -3/Protoforge | Spotted Striker 24004 | -3/Protoforge | Spotted Striker 24005 | -3/Protoforge | Destroyed Striker 24050 | -3/Protoforge | Spotted Striker 24052 | -3/Protoforge | Found UFD Drillbomb 24065 | -3/Protoforge | Destroyed 11 combat bots 24082 | -3/Protoforge | Installed UFD Drillbomb at designated target 24082 | -3/Protoforge | UFD reported confirmed Drillbomb installation 24115 | -3/Protoforge | Spotted Executioner 24117 | -3/Protoforge | Destroyed Executioner 24122 | -3/Protoforge | Spotted Executioner 24135 | -3/Protoforge | Destroyed Executioner 24142 | -3/Protoforge | Spotted Executioner 24151 | -3/Protoforge | Destroyed Executioner 24159 | -3/Protoforge | Spotted Executioner 24164 | -3/Protoforge | Destroyed Executioner 24167 | -3/Protoforge | Spotted Executioner 24168 | -3/Protoforge | Spotted Executioner 24213 | -3/Protoforge | Destroyed 12 combat bots 24247 | -3/Protoforge | Spotted Striker 24250 | -3/Protoforge | Destroyed Striker 24253 | -3/Protoforge | Spotted Striker 24339 | -3/Protoforge | Spotted Executioner 24345 | -3/Protoforge | Spotted Executioner 24346 | -3/Protoforge | Spotted Executioner 24350 | -3/Protoforge | Destroyed Executioner 24351 | -3/Protoforge | Spotted Executioner 24352 | -3/Protoforge | Destroyed Executioner 24354 | -3/Protoforge | Destroyed Executioner 24355 | -3/Protoforge | Spotted Executioner 24357 | -3/Protoforge | Spotted Striker 24366 | -3/Protoforge | Destroyed Executioner 24370 | -3/Protoforge | Destroyed Executioner 24393 | -3/Protoforge | Destroyed 10 combat bots 24397 | -3/Protoforge | Destroyed Striker 24426 | -3/Protoforge | Spotted Striker 24428 | -3/Protoforge | Lost 11 allies 24429 | -3/Protoforge | Spotted Striker 24431 | -3/Protoforge | Spotted Executioner 24433 | -3/Protoforge | Spotted Striker 24511 | -3/Protoforge | Destroyed Executioner 24546 | -3/Protoforge | Lost 5 allies 24550 | -3/Protoforge | Spotted Executioner 24552 | -3/Protoforge | Spotted Striker 24560 | -3/Protoforge | Destroyed Striker 24569 | -3/Protoforge | Spotted Executioner 24571 | -3/Protoforge | Destroyed Executioner 24607 | -3/Protoforge | Lost 4 allies 24611 | -3/Protoforge | Found UFD Drillbomb 24614 | -3/Protoforge | Destroyed 8 combat bots 24667 | -3/Protoforge | Spotted Executioner 24679 | -3/Protoforge | Installed UFD Drillbomb at designated target 24679 | -3/Protoforge | UFD reported confirmed Drillbomb installation 24680 | -3/Protoforge | UFD began Drillbomb countdown 24694 | -3/Protoforge | Entered Research 24694 | -2/Research | Evolved 2 slots: Utility x1, Weapon x1 24695 | -2/Research | Identified exit to Access 24695 | -2/Research | Identified exit to Testing 24698 | -2/Research | Loaded intel: 24 terminal locations 24699 | -2/Research | Loaded intel: 6 scanalyzer locations 24900 | -2/Research | Incoming investigation squad redirected 24987 | -2/Research | Incoming investigation squad redirected 24988 | -2/Research | Incoming investigation squad redirected 25021 | -2/Research | High security lockdown imminent 25046 | -2/Research | Entered Testing 25047 | -2/Testing | Spotted PL-W4BVZCXLXK 25048 | -2/Testing | Loaded intel: 10 trap records 25060 | -2/Testing | Found Prototype Energy Cannon 25060 | -2/Testing | Identified Null Cannon 25063 | -2/Testing | Destroyed 7 combat bots 25095 | -2/Testing | Found Prototype Device 25095 | -2/Testing | Identified AEGIS Remote Shield 25103 | -2/Testing | Incoming investigation squad redirected 25203 | -2/Testing | Spotted Striker 25204 | -2/Testing | Spotted Striker 25215 | -2/Testing | Destroyed Striker 25226 | -2/Testing | Destroyed Striker 25244 | -2/Testing | Spotted Alpha 7 25245 | -2/Testing | Stole the SGEMP Prototype 25264 | -2/Testing | Learned Research emergency access door positions 25296 | -2/Testing | First assault squad dispatched 25317 | -2/Testing | Incoming assault squad redirected 25317 | -2/Testing | Incoming assault squad redirected 25348 | -2/Testing | Entered Access 25348 | -1/Access | Evolved 2 slots: Weapon x2 25349 | -1/Access | Delivered the SGEMP Prototype to Zhirov 25349 | -1/Access | Zhirov transferred Access data 25350 | -1/Access | Loaded intel: 123 machine locations 25350 | -1/Access | Loaded intel: 71 trap records 25350 | -1/Access | Identified exit to Surface 25350 | -1/Access | Discovered exit to Surface (range 89) 25350 | -1/Access | Identified exit to Command 25350 | -1/Access | Discovered exit to Command (range 128) 25454 | -1/Access | Zhirov warped through subspace 25502 | -1/Access | Incoming investigation squad redirected 25598 | -1/Access | First assault squad dispatched 25617 | -1/Access | Incoming assault squad redirected 25662 | -1/Access | Entered Command 25748 | -1/Command | Incoming investigation squad redirected 25853 | -1/Command | Incoming investigation squad redirected 25865 | -1/Command | Spotted M Guard 25865 | -1/Command | Spotted M Guard 25865 | -1/Command | Spotted Combat Programmer 25866 | -1/Command | Spotted Combat Programmer 25912 | -1/Command | First assault squad dispatched 25917 | -1/Command | Met MAIN.C 25936 | -1/Command | 0b10 Conduit disabled 25941 | -1/Command | Destroyed MAIN.C Shell 25943 | -1/Command | MAIN.C activated Command garrisons 25949 | -1/Command | Zhirov used SGEMP to disable MAIN.C 25979 | -1/Command | Lost 5 parts (2n2u1w) 25989 | -1/Command | Discovered exit to Surface (range 29) 25989 | -1/Command | Discovered exit to Surface (range 96) 25989 | -1/Command | Extracted map data and part IDs from MAIN.C's data core 26074 | -1/Command | Found Perforator 26209 | -1/Command | Build established: Scavenger-Ninja 26403 | -1/Command | Found Zero-point Reactor 26405 | -1/Command | Found Zero-point Reactor 26412 | -1/Command | Found Exp. ECM Suite 26541 | -1/Command | Build established: Scavenger-Sprinter 26580 | -1/Command | All MAIN.C guards destroyed 26904 | -1/Command | Warped through subspace to slip node 26904 | -1/Command | Discovered new exit (range 4) 26908 | -1/Command | Entered Access_0 26909 | -1/Access_0 | Met Architect 26925 | -1/Access_0 | Architect warped through subspace 26942 | -1/Access_0 | Destroyed A8 26960 | -1/Access_0 | Found Lgt. Regenerative Plating 26969 | -1/Access_0 | Architect warped through subspace 26986 | -1/Access_0 | Lost 11 parts (1p2u8w) 26987 | -1/Access_0 | Subspace Access Node disabled 27035 | -1/Access_0 | A6 warped into view 27046 | -1/Access_0 | Lost 5 parts (1p2n1u1w) 27051 | -1/Access_0 | Subspace Access Node disabled 27060 | -1/Access_0 | Found Hpw. Transdimensional Reconstructor 27074 | -1/Access_0 | Core integrity fell below 50% 27082 | -1/Access_0 | Subspace Access Node disabled 27115 | -1/Access_0 | Lost 10 parts (3n2u5w) 27140 | -1/Access_0 | A5 warped into view 27203 | -1/Access_0 | Core integrity fell below 20% 27205 | -1/Access_0 | Warped through subspace to slip node 27205 | -1/Access_0 | Discovered exit to Surface (range 8) 27235 | -1/Access_0 | Lost 9 parts (2p3n4u) 27336 | *** | Escaped! Last Messages --------------- 27190_ Imp. Antigrav System destroyed. 27197_ A6 follow-up attacks with Enh. Force Lance. 27197_ Quantum Shear penetrates Wall. 27204_ Adv. Quantum Shading Machine destroyed. 27204_ Penetrated by Quantum Shear. 27205_ Warped through subspace, drawn to slip node. 27205_ EXIT=FOUND: SURFACE 27207_ A0_RES: I have more important things to do than play hide-and-seek. Deal with this piece of junk if it returns. 27213_ >> Reconnected with Drone. 27332_ HV Slug penetrates Wall. 27334_ HV Slug penetrates Drone. 27334_ Drone suffers critical hit (Destroy). 27335_ HV Slug penetrates Wall. 27336_ HV Slug penetrates Drone. 27336_ Drone suffers critical hit (Destroy). 27336_ Drone destroyed. Map ----- +----------------------------------------------------+ | | | | | | | | | | | | | | | | | | | | | | | | | | | | | | | | | ?????????????????????????????????????????????????? | | ?????????????????????????????????????????????????? | | ?????????????????????????????????????????????????? | | ?????????????????????????????????????????????????? | | ?????????????????????????????????????????????????? | | ?????????????????????????????????????????????????? | | ????????????????????????###??????????????????????? | | ???????????????????????## ##?????????????????????? | | ???????????????????????# #?????????????????????? | | ???????????????????????# @ #?????????????????????? | | ??????????????????????## #?????????????????????? | | ??????????????????????# #?????????????????????? | | ??????????????????????# ##?????????????????????? | | ??????????????????????## #?????????????????????? | | ??????????????????????# #?????????????????????? | | ??????????????????????# ##?????????????????????? | | ??????????????????????# < #?????????????????????? | | ??????????????????????# ##?????????????????????? | | ??????????????????????## #??????????????????????? | | ???????????????????????####??????????????????????? | | ?????????????????????????????????????????????????? | | ?????????????????????????????????????????????????? | | ?????????????????????????????????????????????????? | | ?????????????????????????????????????????????????? | | ?????????????????????????????????????????????????? | | ?????????????????????????????????????????????????? | | ?????????????????????????????????????????????????? | | ?????????????????????????????????????????????????? | | ?????????????????????????????????????????????????? | | ?????????????????????????????????????????????????? | | ?????????????????????????????????????????????????? | | ?????????????????????????????????????????????????? | | ?????????????????????????????????????????????????? | | ?????????????????????????????????????????????????? | +----------------------------------------------------+ Best States ------------- Heat Dissipation 65 Coolant Potential 120 Energy Generation 71 Energy Capacity 1120 Matter Stores 300 Matter Capacity 300 Sight Range 23 Robot Scan Range 20 Terrain Scan Density 10 ECM Strength 3 Jamming Range 16 Cloak Strength 9 Additional Mass Support 25 EM Shielding 4 Armor Coverage 150 Resistance: TH 10 Resistance: EM 25 Core Shielding 90 Propulsion Shielding 90 Utility Shielding 66 Weapon Shielding 90 Projectile Deflection 15 Weapon Cycling 25 Phase Shifting 25 Evasion (%) 100 Targeting Accuracy 30 Core Analysis 12 Recoil Reduction 99 Kinecelleration 66 Offensive Hacking 50 Defensive Hacking 22 Authchip Count 2 Item Schematics ----------------- Adv. System Restoration Module | -6/Factory | Downloaded CPS Tube | -6/Factory | Scanalyzed Imp. Surge Thruster | -6/Factory | Hacked Exp. Signal Interpreter | -6/Factory | Scanalyzed Imp. System Shield | -6/Factory | Scanalyzed Imp. Propulsion Shielding | -6/Factory | Scanalyzed Mic. Nuclear Core | -6/Factory | Scanalyzed Adv. Hacking Suite | -6/Factory | Hacked ECM Suite | -6/Factory | Scanalyzed Imp. Transmission Jammer | -6/Factory | Hacked Imp. Remote Datajack | -6/Factory | Hacked Combat Drone Bay | -6/Data Miner | Free Lgt. Regenerative Plating | -6/Data Miner | Free Enh. Flexi-carbon Leg | -6/Data Miner | Free Imp. Matter Compressor | -6/Data Miner | Free Hvy. Proton Missile Launcher | -6/Data Miner | Free Imp. Heavy Treads | -6/Data Miner | Free Adv. Target Analyzer | -6/Data Miner | Free Hvy. Gauss Cannon | -6/Data Miner | Free Imp. System Guard | -6/Data Miner | Free Linear Accelerator | -6/Data Miner | Free Cld. Cesium-ion Thruster | -5/Factory | Hacked 0b10 Decoder Chip [Looter] | -5/Factory | Extrapolated Deep Structural Scanner | -5/Factory | Extrapolated 0b10 Decoder Chip [Skirmisher] | -5/Factory | Extrapolated Mak. Medium Armor Plating | -5/Factory | Extrapolated Mak. Ablative Armor | -5/Factory | Extrapolated Mak. Coolant Network | -5/Extension | Extrapolated Energy Deflector | -5/Extension | Extrapolated Mak. Hacking Suite | -5/Extension | Extrapolated Mak. System Shield | -5/Extension | Extrapolated Mak. System Restoration Module | -5/Extension | Extrapolated Beamcaster | -5/Extension | Extrapolated Hvy. Battle Rifle | -5/Extension | Extrapolated Mak. ECM Suite | -5/Cetus | Extrapolated Mak. Thermal Plating | -5/Archives | Extrapolated Mak. Terrain Scanner | -5/Hub_04(d) | Extrapolated Tactical Coordination Suite | -5/Hub_04(d) | Extrapolated Mak. Core Shielding | -4/Factory | Extrapolated Mak. Weapon Shielding | -4/Factory | Extrapolated Mak. Light Armor Plating | -4/Factory | Extrapolated Mak. Sensor Array | -4/Factory | Extrapolated Machine Rigger | -4/Factory | Extrapolated Cld. Nuclear Pulse Thruster | -4/Factory | Hacked Hvy. Beamcaster | -4/Factory | Extrapolated Bore Cannon | -4/Factory | Extrapolated Multitool | -4/Factory | Extrapolated Wartreads | -4/Factory | Extrapolated Mak. Power Source | -4/Factory | Extrapolated Mak. Transmission Jammer | -4/Factory | Extrapolated Mak. Axe | -4/Factory | Extrapolated Exp. Propulsion Shielding | -4/Factory | Hacked 0b10 Decoder Chip [Generic] | -4/Factory | Extrapolated 0b10 Decoder Chip [Scout] | -4/Factory | Extrapolated Mak. Salvage Targeting Computer | -4/Factory | Extrapolated Adv. Heavy Siege Treads | -4/Factory | Hacked Hvy. Shield Leg | -4/Factory | Hacked Quantum Reactor | -4/Factory | Hacked Mak. Trap Scanner | -4/Factory | Extrapolated Mak. Heavy Armor Plating | -4/Factory | Extrapolated Mak. Kinetic Plating | -4/Factory | Extrapolated Mak. Targeting Computer | -4/Upper Caves | Extrapolated Assault Drone Bay | -4/Zhirov | Free Exp. Heat Sink | -4/Zhirov | Free Exp. Optical Array | -4/Zhirov | Free Imp. Arc Thrower | -4/Zhirov | Free Mak. Terrain Scan Processor | -3/Proximity Caves | Extrapolated Plasma Flamer | -3/Proximity Caves | Extrapolated Ripper | -3/Proximity Caves | Extrapolated Graviton Reactor | -3/Research | Scanalyzed Q-thruster | -3/Research | Hacked Cld. Phase Cannon | -3/Protoforge | Scanalyzed Adv. Myomer Leg | -3/Protoforge | Archive Particle Accelerator | -3/Protoforge | Archive Hvy. Dispersion Rifle | -3/Protoforge | Archive Thunder Hammer | -3/Protoforge | Archive Imp. Energy Well | -3/Protoforge | Archive Adv. Gravity Neutralizer | -3/Protoforge | Archive Lrn. Phase Cannon | -3/Protoforge | Archive Imp. KE Penetrator | -3/Protoforge | Archive Adv. Variable Charge Gun | -3/Protoforge | Archive Hellfire Missile Launcher | -3/Protoforge | Archive Imp. Matter Neutralizer | -3/Protoforge | Archive Ovr. Railgun | -3/Protoforge | Scanalyzed Adv. Remote Datajack | -3/Protoforge | Hacked Adv. Transmission Jammer | -3/Protoforge | Hacked Exp. Weapon Shielding | -3/Protoforge | Hacked Adv. Micro-nuke Launcher | -3/Protoforge | Archive Hvy. Neutron Cannon | -3/Protoforge | Archive Adv. Energy Well | -3/Protoforge | Archive Exp. Hacking Suite | -2/Testing | Archive Molecular Scythe | -2/Testing | Archive Robot Schematics ------------------ M-28 Smith | -8/Recycling | Hacked D-63 Destroyer | -6/Data Miner | Free M-22 Extractor | -6/Data Miner | Free L-41 Fighter | -6/Data Miner | Free S-27 Virus | -6/Data Miner | Free A-15 Conveyor | -6/Data Miner | Free Y-72 Warden | -3/Research | Hacked S-43 Plague | -3/Protoforge | Archive G-67 Veteran | -3/Protoforge | Archive C-55 Analyst | -3/Protoforge | Archive K-01 Serf | -3/Protoforge | Archive X-87 Electro | -2/Testing | Archive G-73 Enforcer | -2/Testing | Archive Fabricated ------------ Imp. Surge Thruster | x2 | -6/Factory | Authchip Adv. System Restoration Module | x2 | -6/Factory | Authchip Adv. Hacking Suite | x1 | -6/Factory | Authchip Imp. Surge Thruster | x2 | -5/Factory Adv. Hacking Suite | x1 | -5/Factory | Authchip Imp. Surge Thruster | x2 | -5/Factory Deep Structural Scanner | x1 | -4/Factory Adv. Hacking Suite | x1 | -4/Factory | Authchip Q-thruster | x2 | -4/Factory | Preloaded Adv. Hacking Suite | x1 | -4/Factory | Authchip Multitool | x1 | -3/Research Mak. Power Source | x2 | -3/Research Exp. Propulsion Shielding | x1 | -3/Research Ovr. Railgun | x1 | -3/Protoforge Exp. Weapon Shielding | x1 | -3/Protoforge Adv. Transmission Jammer | x2 | -3/Protoforge Exp. Weapon Shielding | x1 | -3/Protoforge Repaired ---------- Lgt. Cannon | 64% | -10/Materials Imp. Surge Thruster | 50% | -6/Factory Imp. Surge Thruster | 50% | -6/Factory Imp. Surge Thruster | 22% | -6/Factory VTOL Module | 36% | -6/Factory Imp. Surge Thruster | 73% | -6/Factory Nuclear Pulse Thruster | 46% | -6/Factory Imp. Surge Thruster | 53% | -6/Factory Lgt. Fission Core | 8% | -5/Factory Biomechanical Wings | 10% | -5/Factory Field Propulsion Drive | 30% | -5/Extension Power Sword | 8% | -4/Factory Lgt. Antimatter Reactor | 32% | -4/Factory Cld. Nuclear Pulse Thruster | 50% | -4/Factory Cld. Nuclear Pulse Thruster | 32% | -4/Factory Adv. Remote Datajack | 74% | -3/Research Lgt. Angular Momentum Engine | 38% | -3/Research Cld. Nuclear Pulse Thruster | 65% | -3/Research Mak. Power Source | 32% | -3/Quarantine Exp. Propulsion Shielding | 74% | -3/Protoforge Ovr. Railgun | 72% | -3/Protoforge Alien Tech Used ----------------- Integrated Reactor Phase Redirector High-powered Transdimensional Reconstructor Dimensional Node Initializer Subatomic Replicator Core Cannon Sigix Broadsword Supercharged TR Concept Nanofilaments [Conductive] Matter Drive Transdimensional Reconstructor Achievements -------------- Revolutionary Research Challenges ------------ None Game ------ Seed SpectralDamperStorage Manual? 0 Play Time 11:30:45 Cumulative 392.0 hours Start 2025.07.28 @ 18:19:54 End 2025.07.30 @ 07:48:31 Sessions 9 Manual Loads 0 Difficulty Rogue Special Mode None Game No. 181 Rogue 181 Adventurer 0 Explorer 0 Win Type 0 Total 26 Types 11/1/5/1/5/1/0/1/0/1 Lore% 91 Gallery% 82 Achievement% 77 Wizard Run 0 Options --------- Layout 1 ASCII 0 Keyboard 0 Movement Numpad Keybinds 0 Fullscreen 1 Font 24/Smallcaps Map View 50x35 Zoom Use 0% Tactical HUD 1 Map Filters NONE Filters NONE Steam 1 RUN: d826fdb0-94d3-4de2-9413-24d029fd6aa1